Workbook

Sheet TRC - System
A1: System Measures
A3: Facility Size Category | B3: Measure | C3: Measure Life (Years) | D3: Individual Measure % Savings | E3: Baseline Energy Consumption (GJ) | F3: Baseline Gas Consumption (m3) | G3: Baseline Technology Capital Cost | H3: Measure Capital Cost (Full) | I3: Installation / Engineering Cost (Full) | J3: Incremental Annual O&M Cost | K3: Now/ EOL | L3: Annual Gas Savings (GJ) | M3: Annual Gas Savings (m3) | N3: Net Measure TRC | O3: Simple Payback Period (Yrs) | P3: B/C Ratio
A4: Medium | B4: ='[1]Measure Setup - NG TRC'!G5 -> Integrated control system | C4: ='[1]Measure Setup - NG TRC'!I5 -> 10 | D4: ='[1]Measure Setup - NG TRC'!J5 -> 0.08 | E4: ='[1]Measure Setup - NG TRC'!AY5 -> 1200000 | F4: =(1/0.03769)*E4 -> 31838684 | G4: N/A | H4: ='[1]Measure Setup - NG TRC'!BB5 -> 165000 | I4: ='[1]Measure Setup - NG TRC'!BC5 -> 13200 | J4: N/A | K4: ='[1]Measure Setup - NG TRC'!CL5 -> Now | L4: ='[1]Measure Setup - NG TRC'!BK5 -> 96000 | M4: =IF(L4="","",(1/0.03769)*L4) -> 2547094.72 | N4: ='[1]Measure Setup - NG TRC'!BO5 -> 6193194.577 | O4: ='[1]Measure Setup - NG TRC'!BR5 -> 0.1703222915 | P4: ='[1]Measure Setup - NG TRC'!BT5 -> 35.75417832
B5: ='[1]Measure Setup - NG TRC'!G6 -> Sub-metering | C5: ='[1]Measure Setup - NG TRC'!I6 -> 15 | D5: ='[1]Measure Setup - NG TRC'!J6 -> 0.05 | E5: ='[1]Measure Setup - NG TRC'!AY6 -> 1200000 | F5: 31838684 | G5: N/A | H5: ='[1]Measure Setup - NG TRC'!BB6 -> 330000 | I5: ='[1]Measure Setup - NG TRC'!BC6 -> 33000 | J5: ='[1]Measure Setup - NG TRC'!BD6 -> 3300 | K5: ='[1]Measure Setup - NG TRC'!CL6 -> Now | L5: ='[1]Measure Setup - NG TRC'!BK6 -> 60000 | M5: =IF(L5="","",(1/0.03769)*L5) -> 1591934.2 | N5: ='[1]Measure Setup - NG TRC'!BO6 -> 4674293.953 | O5: ='[1]Measure Setup - NG TRC'!BR6 -> 0.5630123828 | P5: ='[1]Measure Setup - NG TRC'!BT6 -> 13.04404329

Sheet TRC - Boiler
A1: Boiler, Steam & Hot Water Systems
A3: System / Technology Size Category | B3: Measure | C3: Measure Life (Years) | D3: Individual Measure % Savings | E3: Baseline Energy Consumption (GJ) | F3: Baseline Gas Consumption (m3) | G3: Baseline Technology Capital Cost | H3: Measure Capital Cost (Full) | I3: Installation / Engineering Cost (Full) | J3: Incremental Annual O&M Cost | K3: Now/ EOL | L3: Annual Gas Savings (GJ) | M3: Annual Gas Savings (m3) | N3: Net Measure TRC | O3: Simple Payback Period (Yrs) | P3: B/C Ratio
A4: Small (200 BHP) | B4: ='[1]Measure Setup - NG TRC'!G34 -> Economizer | C4: ='[1]Measure Setup - NG TRC'!I34 -> 20 | D4: ='[1]Measure Setup - NG TRC'!J34 -> 0.04 | E4: ='[1]Measure Setup - NG TRC'!R34 -> 30987.0439 | F4: =(1/0.03769)*E4 -> 822155.5824 | G4: N/A | H4: ='[1]Measure Setup - NG TRC'!U34 -> 27000 | I4: ='[1]Measure Setup - NG TRC'!V34 -> 3000 | J4: ='[1]Measure Setup - NG TRC'!W34 -> 1000 | K4: ='[1]Measure Setup - NG TRC'!X34 -> Now | L4: ='[1]Measure Setup - NG TRC'!AD34 -> 1239.481756 | M4: =IF(L4="","",(1/0.03769)*L4) -> 32886.2233 | N4: ='[1]Measure Setup - NG TRC'!AH34 -> 81164.60025 | O4: ='[1]Measure Setup - NG TRC'!AK34 -> 2.478327153 | P4: ='[1]Measure Setup - NG TRC'!AM34 -> 3.107428979
B5: ='[1]Measure Setup - NG TRC'!G35 -> Blowdown heat recovery | C5: ='[1]Measure Setup - NG TRC'!I35 -> 20 | D5: ='[1]Measure Setup - NG TRC'!J35 -> 0.02 | E5: ='[1]Measure Setup - NG TRC'!R35 -> 30987.0439 | F5: 822155.5824 | G5: N/A | H5: ='[1]Measure Setup - NG TRC'!U35 -> 23000 | I5: ='[1]Measure Setup - NG TRC'!V35 -> 2000 | J5: ='[1]Measure Setup - NG TRC'!W35 -> 1000 | K5: ='[1]Measure Setup - NG TRC'!X35 -> Now | L5: ='[1]Measure Setup - NG TRC'!AD35 -> 619.740878 | M5: 16443.11165 | N5: ='[1]Measure Setup - NG TRC'!AH35 -> 26325.51826 | O5: ='[1]Measure Setup - NG TRC'!AK35 -> 4.518424029 | P5: ='[1]Measure Setup - NG TRC'!AM35 -> 1.78551832
B6: ='[1]Measure Setup - NG TRC'!G36 -> Boiler combustion air preheat | C6: ='[1]Measure Setup - NG TRC'!I36 -> 15 | D6: ='[1]Measure Setup - NG TRC'!J36 -> 0.05 | E6: ='[1]Measure Setup - NG TRC'!R36 -> 30987.0439 | F6: 822155.5824 | G6: N/A | H6: ='[1]Measure Setup - NG TRC'!U36 -> 50000 | I6: ='[1]Measure Setup - NG TRC'!V36 -> 10000 | J6: ='[1]Measure Setup - NG TRC'!W36 -> 2000 | K6: ='[1]Measure Setup - NG TRC'!X36 -> Now | L6: ='[1]Measure Setup - NG TRC'!AD36 -> 1549.352195 | M6: 41107.77912 | N6: ='[1]Measure Setup - NG TRC'!AH36 -> 55511.69566 | O6: ='[1]Measure Setup - NG TRC'!AK36 -> 4.165114062 | P6: ='[1]Measure Setup - NG TRC'!AM36 -> 1.738068105
B7: ='[1]Measure Setup - NG TRC'!G37 -> Process heat recovery to preheat makeup water | C7: ='[1]Measure Setup - NG TRC'!I37 -> 20 | D7: ='[1]Measure Setup - NG TRC'!J37 -> 0.06 | E7: ='[1]Measure Setup - NG TRC'!R37 -> 30987.0439 | F7: 822155.5824 | G7: N/A | H7: ='[1]Measure Setup - NG TRC'!U37 -> 70000 | I7: ='[1]Measure Setup - NG TRC'!V37 -> 8000 | J7: ='[1]Measure Setup - NG TRC'!W37 -> 1500 | K7: ='[1]Measure Setup - NG TRC'!X37 -> Now | L7: ='[1]Measure Setup - NG TRC'!AD37 -> 1859.222634 | M7: 49329.33495 | N7: ='[1]Measure Setup - NG TRC'!AH37 -> 88746.90037 | O7: ='[1]Measure Setup - NG TRC'!AK37 -> 4.237139971 | P7: ='[1]Measure Setup - NG TRC'!AM37 -> 1.977708081
B8: ='[1]Measure Setup - NG TRC'!G38 -> Condensing boiler | C8: ='[1]Measure Setup - NG TRC'!I38 -> 20 | D8: ='[1]Measure Setup - NG TRC'!J38 -> 0.1 | E8: ='[1]Measure Setup - NG TRC'!R38 -> 30987.0439 | F8: 822155.5824 | G8: ='[1]Measure Setup - NG TRC'!S38 -> 80000 | H8: ='[1]Measure Setup - NG TRC'!U38 -> 120000 | I8: ='[1]Measure Setup - NG TRC'!V38 -> 20000 | J8: ='[1]Measure Setup - NG TRC'!W38 -> 1000 | K8: ='[1]Measure Setup - NG TRC'!X38 -> EOL | L8: ='[1]Measure Setup - NG TRC'!AD38 -> 3098.70439 | M8: 82215.55824 | N8: ='[1]Measure Setup - NG TRC'!AH38 -> 250681.8462 | O8: ='[1]Measure Setup - NG TRC'!AK38 -> 1.861396541 | P8: ='[1]Measure Setup - NG TRC'!AM38 -> 6.167252764
B9: ='[1]Measure Setup - NG TRC'!G40 -> Direct contact hot water heaters | C9: ='[1]Measure Setup - NG TRC'!I40 -> 20 | D9: ='[1]Measure Setup - NG TRC'!J40 -> 0.1 | E9: ='[1]Measure Setup - NG TRC'!R40 -> 30987.0439 | F9: 822155.5824 | G9: ='[1]Measure Setup - NG TRC'!S40 -> 80000 | H9: ='[1]Measure Setup - NG TRC'!U40 -> 75000 | I9: ='[1]Measure Setup - NG TRC'!V40 -> 13000 | J9: ='[1]Measure Setup - NG TRC'!W40 -> -3000 | K9: ='[1]Measure Setup - NG TRC'!X40 -> EOL | L9: ='[1]Measure Setup - NG TRC'!AD40 -> 3098.70439 | M9: 82215.55824 | N9: ='[1]Measure Setup - NG TRC'!AH40 -> 329736.1011 | O9: ='[1]Measure Setup - NG TRC'!AK40 -> 0.1359763752 | P9: ='[1]Measure Setup - NG TRC'!AM40 -> N/A
B10: ='[1]Measure Setup - NG TRC'!G41 -> Boiler right sizing and load management | C10: ='[1]Measure Setup - NG TRC'!I41 -> 20 | D10: ='[1]Measure Setup - NG TRC'!J41 -> 0.1 | E10: ='[1]Measure Setup - NG TRC'!R41 -> 30987.0439 | F10: 822155.5824 | G10: ='[1]Measure Setup - NG TRC'!S41 -> 80000 | H10: ='[1]Measure Setup - NG TRC'!U41 -> 70000 | I10: ='[1]Measure Setup - NG TRC'!V41 -> 13000 | J10: ='[1]Measure Setup - NG TRC'!W41 -> -3000 | K10: ='[1]Measure Setup - NG TRC'!X41 -> EOL | L10: ='[1]Measure Setup - NG TRC'!AD41 -> 3098.70439 | M10: 82215.55824 | N10: ='[1]Measure Setup - NG TRC'!AH41 -> 334736.1011 | O10: ='[1]Measure Setup - NG TRC'!AK41 -> 0 | P10: ='[1]Measure Setup - NG TRC'!AM41 -> N/A
B11: ='[1]Measure Setup - NG TRC'!G42 -> High efficiency burners | C11: ='[1]Measure Setup - NG TRC'!I42 -> 20 | D11: ='[1]Measure Setup - NG TRC'!J42 -> 0.05 | E11: ='[1]Measure Setup - NG TRC'!R42 -> 30987.0439 | F11: 822155.5824 | G11: N/A | H11: ='[1]Measure Setup - NG TRC'!U42 -> 48000 | I11: ='[1]Measure Setup - NG TRC'!V42 -> 6000 | J11: ='[1]Measure Setup - NG TRC'!W42 -> 0 | K11: ='[1]Measure Setup - NG TRC'!X42 -> Now | L11: ='[1]Measure Setup - NG TRC'!AD42 -> 1549.352195 | M11: 41107.77912 | N11: ='[1]Measure Setup - NG TRC'!AH42 -> 95597.70496 | O11: ='[1]Measure Setup - NG TRC'!AK42 -> 3.198001277 | P11: ='[1]Measure Setup - NG TRC'!AM42 -> 2.77032787
B12: ='[1]Measure Setup - NG TRC'!G43 -> Insulation | C12: ='[1]Measure Setup - NG TRC'!I43 -> 15 | D12: ='[1]Measure Setup - NG TRC'!J43 -> 0.05 | E12: ='[1]Measure Setup - NG TRC'!R43 -> 30987.0439 | F12: 822155.5824 | G12: N/A | H12: ='[1]Measure Setup - NG TRC'!U43 -> 20000 | I12: ='[1]Measure Setup - NG TRC'!V43 -> 1500 | J12: ='[1]Measure Setup - NG TRC'!W43 -> 150 | K12: ='[1]Measure Setup - NG TRC'!X43 -> Now | L12: ='[1]Measure Setup - NG TRC'!AD43 -> 1549.352195 | M12: 41107.77912 | N12: ='[1]Measure Setup - NG TRC'!AH43 -> 108082.9427 | O12: ='[1]Measure Setup - NG TRC'!AK43 -> 1.293653584 | P12: ='[1]Measure Setup - NG TRC'!AM43 -> 5.773789284
B13: ='[1]Measure Setup - NG TRC'!G44 -> Advanced boiler controls | C13: ='[1]Measure Setup - NG TRC'!I44 -> 15 | D13: ='[1]Measure Setup - NG TRC'!J44 -> 0.03 | E13: ='[1]Measure Setup - NG TRC'!R44 -> 30987.0439 | F13: 822155.5824 | G13: N/A | H13: ='[1]Measure Setup - NG TRC'!U44 -> 40000 | I13: ='[1]Measure Setup - NG TRC'!V44 -> 1200 | J13: ='[1]Measure Setup - NG TRC'!W44 -> 150 | K13: ='[1]Measure Setup - NG TRC'!X44 -> Now | L13: ='[1]Measure Setup - NG TRC'!AD44 -> 929.6113171 | M13: 24664.66747 | N13: ='[1]Measure Setup - NG TRC'!AH44 -> 36093.40087 | O13: ='[1]Measure Setup - NG TRC'!AK44 -> 4.1427353 | P13: ='[1]Measure Setup - NG TRC'!AM44 -> 1.852447414
B14: ='[1]Measure Setup - NG TRC'!G45 -> Blowdown control | C14: ='[1]Measure Setup - NG TRC'!I45 -> 20 | D14: ='[1]Measure Setup - NG TRC'!J45 -> 0.01 | E14: ='[1]Measure Setup - NG TRC'!R45 -> 30987.0439 | F14: 822155.5824 | G14: N/A | H14: ='[1]Measure Setup - NG TRC'!U45 -> 35000 | I14: ='[1]Measure Setup - NG TRC'!V45 -> 3500 | J14: ='[1]Measure Setup - NG TRC'!W45 -> 600 | K14: ='[1]Measure Setup - NG TRC'!X45 -> Now | L14: ='[1]Measure Setup - NG TRC'!AD45 -> 309.870439 | M14: 8221.555824 | N14: ='[1]Measure Setup - NG TRC'!AH45 -> -13688.59724 | O14: ='[1]Measure Setup - NG TRC'!AK45 -> 14.079388 | P14: ='[1]Measure Setup - NG TRC'!AM45 -> 0.6860999393
B15: ='[1]Measure Setup - NG TRC'!G46 -> Boiler water treatment | C15: ='[1]Measure Setup - NG TRC'!I46 -> 10 | D15: ='[1]Measure Setup - NG TRC'!J46 -> 0.01 | E15: ='[1]Measure Setup - NG TRC'!R46 -> 30987.0439 | F15: 822155.5824 | G15: N/A | H15: ='[1]Measure Setup - NG TRC'!U46 -> 10000 | I15: ='[1]Measure Setup - NG TRC'!V46 -> 2000 | J15: ='[1]Measure Setup - NG TRC'!W46 -> 500 | K15: ='[1]Measure Setup - NG TRC'!X46 -> Now | L15: ='[1]Measure Setup - NG TRC'!AD46 -> 309.870439 | M15: 8221.555824 | N15: ='[1]Measure Setup - NG TRC'!AH46 -> 5493.412642 | O15: ='[1]Measure Setup - NG TRC'!AK46 -> 4.344638489 | P15: ='[1]Measure Setup - NG TRC'!AM46 -> 1.364471158
B16: ='[1]Measure Setup - NG TRC'!G47 -> Boiler maintenance | C16: ='[1]Measure Setup - NG TRC'!I47 -> 5 | D16: ='[1]Measure Setup - NG TRC'!J47 -> 0.05 | E16: ='[1]Measure Setup - NG TRC'!R47 -> 30987.0439 | F16: 822155.5824 | G16: N/A | H16: ='[1]Measure Setup - NG TRC'!U47 -> 0 | I16: ='[1]Measure Setup - NG TRC'!V47 -> 0 | J16: ='[1]Measure Setup - NG TRC'!W47 -> 8000 | K16: ='[1]Measure Setup - NG TRC'!X47 -> Now | L16: ='[1]Measure Setup - NG TRC'!AD47 -> 1549.352195 | M16: 41107.77912 | N16: ='[1]Measure Setup - NG TRC'!AH47 -> 31488.87804 | O16: ='[1]Measure Setup - NG TRC'!AK47 -> 0.9003385212 | P16: ='[1]Measure Setup - NG TRC'!AM47 -> 2.038335838
B17: ='[1]Measure Setup - NG TRC'!G48 -> Minimize deaerator vent losses | C17: ='[1]Measure Setup - NG TRC'!I48 -> 20 | D17: ='[1]Measure Setup - NG TRC'!J48 -> 0.02 | E17: ='[1]Measure Setup - NG TRC'!R48 -> 30987.0439 | F17: 822155.5824 | G17: N/A | H17: ='[1]Measure Setup - NG TRC'!U48 -> 35000 | I17: ='[1]Measure Setup - NG TRC'!V48 -> 3500 | J17: ='[1]Measure Setup - NG TRC'!W48 -> 600 | K17: ='[1]Measure Setup - NG TRC'!X48 -> Now | L17: ='[1]Measure Setup - NG TRC'!AD48 -> 619.740878 | M17: 16443.11165 | N17: ='[1]Measure Setup - NG TRC'!AH48 -> 16230.94375 | O17: ='[1]Measure Setup - NG TRC'!AK48 -> 6.353365385 | P17: ='[1]Measure Setup - NG TRC'!AM48 -> 1.372199879
B18: ='[1]Measure Setup - NG TRC'!G49 -> Condensate return | C18: ='[1]Measure Setup - NG TRC'!I49 -> 20 | D18: ='[1]Measure Setup - NG TRC'!J49 -> 0.02 | E18: ='[1]Measure Setup - NG TRC'!R49 -> 30987.0439 | F18: 822155.5824 | G18: N/A | H18: ='[1]Measure Setup - NG TRC'!U49 -> 40000 | I18: ='[1]Measure Setup - NG TRC'!V49 -> 8000 | J18: ='[1]Measure Setup - NG TRC'!W49 -> 700 | K18: ='[1]Measure Setup - NG TRC'!X49 -> Now | L18: ='[1]Measure Setup - NG TRC'!AD49 -> 619.740878 | M18: 16443.11165 | N18: ='[1]Measure Setup - NG TRC'!AH49 -> 5879.587381 | O18: ='[1]Measure Setup - NG TRC'!AK49 -> 8.043977677 | P18: ='[1]Measure Setup - NG TRC'!AM49 -> 1.108962981
B19: ='[1]Measure Setup - NG TRC'!G50 -> Steam trap survey and repair | C19: ='[1]Measure Setup - NG TRC'!I50 -> 3 | D19: ='[1]Measure Setup - NG TRC'!J50 -> 0.04 | E19: ='[1]Measure Setup - NG TRC'!R50 -> 30987.0439 | F19: =(1/0.03769)*E19 -> 822155.5824 | G19: N/A | H19: ='[1]Measure Setup - NG TRC'!U50 -> 20000 | I19: ='[1]Measure Setup - NG TRC'!V50 -> 1000 | J19: ='[1]Measure Setup - NG TRC'!W50 -> 0 | K19: ='[1]Measure Setup - NG TRC'!X50 -> Now | L19: ='[1]Measure Setup - NG TRC'!AD50 -> 1239.481756 | M19: =IF(L19="","",(1/0.03769)*L19) -> 32886.2233 | N19: ='[1]Measure Setup - NG TRC'!AH50 -> 11627.87421 | O19: ='[1]Measure Setup - NG TRC'!AK50 -> 1.554583954 | P19: ='[1]Measure Setup - NG TRC'!AM50 -> 1.553708296
B20: ='[1]Measure Setup - NG TRC'!G51 -> Instantaneous Steam Generation | C20: ='[1]Measure Setup - NG TRC'!I51 -> 15 | D20: ='[1]Measure Setup - NG TRC'!J51 -> 0.15 | E20: ='[1]Measure Setup - NG TRC'!R51 -> 30987.0439 | F20: =(1/0.03769)*E20 -> 822155.5824 | G20: ='[1]Measure Setup - NG TRC'!S51 -> 80000 | H20: ='[1]Measure Setup - NG TRC'!U51 -> 120000 | I20: ='[1]Measure Setup - NG TRC'!V51 -> 20000 | J20: ='[1]Measure Setup - NG TRC'!W51 -> 1000 | K20: ='[1]Measure Setup - NG TRC'!X51 -> EOL | L20: ='[1]Measure Setup - NG TRC'!AD51 -> 4648.056585 | M20: =IF(L20="","",(1/0.03769)*L20) -> 123323.3374 | N20: ='[1]Measure Setup - NG TRC'!AH51 -> 344565.4845 | O20: ='[1]Measure Setup - NG TRC'!AK51 -> 1.228435911 | P20: ='[1]Measure Setup - NG TRC'!AM51 -> 8.23784626
A21: Medium (450 BHP) | B21: ='[1]Measure Setup - NG TRC'!G34 -> Economizer | C21: ='[1]Measure Setup - NG TRC'!I34 -> 20 | D21: ='[1]Measure Setup - NG TRC'!J34 -> 0.04 | E21: ='[1]Measure Setup - NG TRC'!AY34 -> 78435.95488 | F21: 2081081.318 | G21: N/A | H21: ='[1]Measure Setup - NG TRC'!BB34 -> 55000 | I21: ='[1]Measure Setup - NG TRC'!BC34 -> 4400 | J21: ='[1]Measure Setup - NG TRC'!BD34 -> 1000 | K21: ='[1]Measure Setup - NG TRC'!BE34 -> Now | L21: ='[1]Measure Setup - NG TRC'!BK34 -> 3137.438195 | M21: 83243.25272 | N21: ='[1]Measure Setup - NG TRC'!BO34 -> 235021.7888 | O21: ='[1]Measure Setup - NG TRC'!BR34 -> 1.819648047 | P21: ='[1]Measure Setup - NG TRC'!BT34 -> 4.460601623
B22: ='[1]Measure Setup - NG TRC'!G35 -> Blowdown heat recovery | C22: ='[1]Measure Setup - NG TRC'!I35 -> 20 | D22: ='[1]Measure Setup - NG TRC'!J35 -> 0.02 | E22: ='[1]Measure Setup - NG TRC'!AY35 -> 78435.95488 | F22: 2081081.318 | G22: N/A | H22: ='[1]Measure Setup - NG TRC'!BB35 -> 50000 | I22: ='[1]Measure Setup - NG TRC'!BC35 -> 4000 | J22: ='[1]Measure Setup - NG TRC'!BD35 -> 1000 | K22: ='[1]Measure Setup - NG TRC'!BE35 -> Now | L22: ='[1]Measure Setup - NG TRC'!BK35 -> 1568.719098 | M22: 41621.62636 | N22: ='[1]Measure Setup - NG TRC'!BO35 -> 88954.11255 | O22: ='[1]Measure Setup - NG TRC'!BR35 -> 3.416867234 | P22: ='[1]Measure Setup - NG TRC'!BT35 -> 2.422956991
B23: ='[1]Measure Setup - NG TRC'!G36 -> Boiler combustion air preheat | C23: ='[1]Measure Setup - NG TRC'!I36 -> 15 | D23: ='[1]Measure Setup - NG TRC'!J36 -> 0.05 | E23: ='[1]Measure Setup - NG TRC'!AY36 -> 78435.95488 | F23: 2081081.318 | G23: N/A | H23: ='[1]Measure Setup - NG TRC'!BB36 -> 140000 | I23: ='[1]Measure Setup - NG TRC'!BC36 -> 21000 | J23: ='[1]Measure Setup - NG TRC'!BD36 -> 5000 | K23: ='[1]Measure Setup - NG TRC'!BE36 -> Now | L23: ='[1]Measure Setup - NG TRC'!BK36 -> 3921.797744 | M23: 104054.0659 | N23: ='[1]Measure Setup - NG TRC'!BO36 -> 131864.3596 | O23: ='[1]Measure Setup - NG TRC'!BR36 -> 4.398336669 | P23: ='[1]Measure Setup - NG TRC'!BT36 -> 1.66253377
B24: ='[1]Measure Setup - NG TRC'!G37 -> Process heat recovery to preheat makeup water | C24: ='[1]Measure Setup - NG TRC'!I37 -> 20 | D24: ='[1]Measure Setup - NG TRC'!J37 -> 0.06 | E24: ='[1]Measure Setup - NG TRC'!AY37 -> 78435.95488 | F24: 2081081.318 | G24: N/A | H24: ='[1]Measure Setup - NG TRC'!BB37 -> 130000 | I24: ='[1]Measure Setup - NG TRC'!BC37 -> 15000 | J24: ='[1]Measure Setup - NG TRC'!BD37 -> 1800 | K24: ='[1]Measure Setup - NG TRC'!BE37 -> Now | L24: ='[1]Measure Setup - NG TRC'!BK37 -> 4706.157293 | M24: 124864.8791 | N24: ='[1]Measure Setup - NG TRC'!BO37 -> 294078.6141 | O24: ='[1]Measure Setup - NG TRC'!BR37 -> 2.966264909 | P24: ='[1]Measure Setup - NG TRC'!BT37 -> 2.834272183
B25: ='[1]Measure Setup - NG TRC'!G38 -> Condensing boiler | C25: ='[1]Measure Setup - NG TRC'!I38 -> 20 | D25: ='[1]Measure Setup - NG TRC'!J38 -> 0.1 | E25: ='[1]Measure Setup - NG TRC'!AY38 -> 78435.95488 | F25: 2081081.318 | G25: ='[1]Measure Setup - NG TRC'!AZ38 -> 135000 | H25: ='[1]Measure Setup - NG TRC'!BB38 -> 180000 | I25: ='[1]Measure Setup - NG TRC'!BC38 -> 15000 | J25: ='[1]Measure Setup - NG TRC'!BD38 -> 2800 | K25: ='[1]Measure Setup - NG TRC'!BE38 -> EOL | L25: ='[1]Measure Setup - NG TRC'!BK38 -> 7843.595488 | M25: 208108.1318 | N25: ='[1]Measure Setup - NG TRC'!BO38 -> 688500.403 | O25: ='[1]Measure Setup - NG TRC'!BR38 -> 0.7595266138 | P25: ='[1]Measure Setup - NG TRC'!BT38 -> 11.00175221
B26: ='[1]Measure Setup - NG TRC'!G40 -> Direct contact hot water heaters | C26: ='[1]Measure Setup - NG TRC'!I40 -> 20 | D26: ='[1]Measure Setup - NG TRC'!J40 -> 0.1 | E26: ='[1]Measure Setup - NG TRC'!AY40 -> 78435.95488 | F26: 2081081.318 | G26: ='[1]Measure Setup - NG TRC'!AZ40 -> 135000 | H26: ='[1]Measure Setup - NG TRC'!BB40 -> 130000 | I26: ='[1]Measure Setup - NG TRC'!BC40 -> 20000 | J26: ='[1]Measure Setup - NG TRC'!BD40 -> -5000 | K26: ='[1]Measure Setup - NG TRC'!BE40 -> EOL | L26: ='[1]Measure Setup - NG TRC'!BK40 -> 7843.595488 | M26: 208108.1318 | N26: ='[1]Measure Setup - NG TRC'!BO40 -> 804906.2 | O26: ='[1]Measure Setup - NG TRC'!BR40 -> 0.1105178998 | P26: ='[1]Measure Setup - NG TRC'!BT40 -> N/A
B27: ='[1]Measure Setup - NG TRC'!G41 -> Boiler right sizing and load management | C27: ='[1]Measure Setup - NG TRC'!I41 -> 20 | D27: ='[1]Measure Setup - NG TRC'!J41 -> 0.1 | E27: ='[1]Measure Setup - NG TRC'!AY41 -> 78435.95488 | F27: 2081081.318 | G27: ='[1]Measure Setup - NG TRC'!AZ41 -> 135000 | H27: ='[1]Measure Setup - NG TRC'!BB41 -> 125000 | I27: ='[1]Measure Setup - NG TRC'!BC41 -> 20000 | J27: ='[1]Measure Setup - NG TRC'!BD41 -> -5000 | K27: ='[1]Measure Setup - NG TRC'!BE41 -> EOL | L27: ='[1]Measure Setup - NG TRC'!BK41 -> 7843.595488 | M27: 208108.1318 | N27: ='[1]Measure Setup - NG TRC'!BO41 -> 809906.2 | O27: ='[1]Measure Setup - NG TRC'!BR41 -> 0.05525894988 | P27: ='[1]Measure Setup - NG TRC'!BT41 -> N/A
B28: ='[1]Measure Setup - NG TRC'!G42 -> High efficiency burners | C28: ='[1]Measure Setup - NG TRC'!I42 -> 20 | D28: ='[1]Measure Setup - NG TRC'!J42 -> 0.05 | E28: ='[1]Measure Setup - NG TRC'!AY42 -> 78435.95488 | F28: 2081081.318 | G28: N/A | H28: ='[1]Measure Setup - NG TRC'!BB42 -> 90000 | I28: ='[1]Measure Setup - NG TRC'!BC42 -> 10000 | J28: ='[1]Measure Setup - NG TRC'!BD42 -> 0 | K28: ='[1]Measure Setup - NG TRC'!BE42 -> Now | L28: ='[1]Measure Setup - NG TRC'!BK42 -> 3921.797744 | M28: 104054.0659 | N28: ='[1]Measure Setup - NG TRC'!BO42 -> 278669.1907 | O28: ='[1]Measure Setup - NG TRC'!BR42 -> 2.339644281 | P28: ='[1]Measure Setup - NG TRC'!BT42 -> 3.786691907
B29: ='[1]Measure Setup - NG TRC'!G43 -> Insulation | C29: ='[1]Measure Setup - NG TRC'!I43 -> 15 | D29: ='[1]Measure Setup - NG TRC'!J43 -> 0.05 | E29: ='[1]Measure Setup - NG TRC'!AY43 -> 78435.95488 | F29: 2081081.318 | G29: N/A | H29: ='[1]Measure Setup - NG TRC'!BB43 -> 35000 | I29: ='[1]Measure Setup - NG TRC'!BC43 -> 2800 | J29: ='[1]Measure Setup - NG TRC'!BD43 -> 1000 | K29: ='[1]Measure Setup - NG TRC'!BE43 -> Now | L29: ='[1]Measure Setup - NG TRC'!BK43 -> 3921.797744 | M29: 104054.0659 | N29: ='[1]Measure Setup - NG TRC'!BO43 -> 285488.6776 | O29: ='[1]Measure Setup - NG TRC'!BR43 -> 0.929529669 | P29: ='[1]Measure Setup - NG TRC'!BT43 -> 7.287454912
B30: ='[1]Measure Setup - NG TRC'!G44 -> Advanced boiler controls | C30: ='[1]Measure Setup - NG TRC'!I44 -> 15 | D30: ='[1]Measure Setup - NG TRC'!J44 -> 0.03 | E30: ='[1]Measure Setup - NG TRC'!AY44 -> 78435.95488 | F30: 2081081.318 | G30: N/A | H30: ='[1]Measure Setup - NG TRC'!BB44 -> 75000 | I30: ='[1]Measure Setup - NG TRC'!BC44 -> 6500 | J30: ='[1]Measure Setup - NG TRC'!BD44 -> 800 | K30: ='[1]Measure Setup - NG TRC'!BE44 -> Now | L30: ='[1]Measure Setup - NG TRC'!BK44 -> 2353.078646 | M30: 62432.43954 | N30: ='[1]Measure Setup - NG TRC'!BO44 -> 110951.9907 | O30: ='[1]Measure Setup - NG TRC'!BR44 -> 3.312547855 | P30: ='[1]Measure Setup - NG TRC'!BT44 -> 2.266794125
B31: ='[1]Measure Setup - NG TRC'!G45 -> Blowdown control | C31: ='[1]Measure Setup - NG TRC'!I45 -> 20 | D31: ='[1]Measure Setup - NG TRC'!J45 -> 0.01 | E31: ='[1]Measure Setup - NG TRC'!AY45 -> 78435.95488 | F31: 2081081.318 | G31: N/A | H31: ='[1]Measure Setup - NG TRC'!BB45 -> 60000 | I31: ='[1]Measure Setup - NG TRC'!BC45 -> 6000 | J31: ='[1]Measure Setup - NG TRC'!BD45 -> 1000 | K31: ='[1]Measure Setup - NG TRC'!BE45 -> Now | L31: ='[1]Measure Setup - NG TRC'!BK45 -> 784.3595488 | M31: 20810.81318 | N31: ='[1]Measure Setup - NG TRC'!BO45 -> 1220.274417 | O31: ='[1]Measure Setup - NG TRC'!BR45 -> 8.87616135 | P31: ='[1]Measure Setup - NG TRC'!BT45 -> 1.016376541
B32: ='[1]Measure Setup - NG TRC'!G46 -> Boiler water treatment | C32: ='[1]Measure Setup - NG TRC'!I46 -> 10 | D32: ='[1]Measure Setup - NG TRC'!J46 -> 0.01 | E32: ='[1]Measure Setup - NG TRC'!AY46 -> 78435.95488 | F32: 2081081.318 | G32: N/A | H32: ='[1]Measure Setup - NG TRC'!BB46 -> 20000 | I32: ='[1]Measure Setup - NG TRC'!BC46 -> 3500 | J32: ='[1]Measure Setup - NG TRC'!BD46 -> 1000 | K32: ='[1]Measure Setup - NG TRC'!BE46 -> Now | L32: ='[1]Measure Setup - NG TRC'!BK46 -> 784.3595488 | M32: 20810.81318 | N32: ='[1]Measure Setup - NG TRC'!BO46 -> 22412.35139 | O32: ='[1]Measure Setup - NG TRC'!BR46 -> 3.245760494 | P32: ='[1]Measure Setup - NG TRC'!BT46 -> 1.756035712
B33: ='[1]Measure Setup - NG TRC'!G47 -> Boiler maintenance | C33: ='[1]Measure Setup - NG TRC'!I47 -> 5 | D33: ='[1]Measure Setup - NG TRC'!J47 -> 0.05 | E33: ='[1]Measure Setup - NG TRC'!AY47 -> 78435.95488 | F33: 2081081.318 | G33: N/A | H33: ='[1]Measure Setup - NG TRC'!BB47 -> 0 | I33: ='[1]Measure Setup - NG TRC'!BC47 -> 0 | J33: ='[1]Measure Setup - NG TRC'!BD47 -> 13000 | K33: ='[1]Measure Setup - NG TRC'!BE47 -> Now | L33: ='[1]Measure Setup - NG TRC'!BK47 -> 3921.797744 | M33: 104054.0659 | N33: ='[1]Measure Setup - NG TRC'!BO47 -> 107189.4266 | O33: ='[1]Measure Setup - NG TRC'!BR47 -> 0.4370990854 | P33: ='[1]Measure Setup - NG TRC'!BT47 -> 3.175100055
B34: ='[1]Measure Setup - NG TRC'!G48 -> Minimize deaerator vent losses | C34: ='[1]Measure Setup - NG TRC'!I48 -> 20 | D34: ='[1]Measure Setup - NG TRC'!J48 -> 0.02 | E34: ='[1]Measure Setup - NG TRC'!AY48 -> 78435.95488 | F34: 2081081.318 | G34: N/A | H34: ='[1]Measure Setup - NG TRC'!BB48 -> 60000 | I34: ='[1]Measure Setup - NG TRC'!BC48 -> 6000 | J34: ='[1]Measure Setup - NG TRC'!BD48 -> 1000 | K34: ='[1]Measure Setup - NG TRC'!BE48 -> Now | L34: ='[1]Measure Setup - NG TRC'!BK48 -> 1568.719098 | M34: 41621.62636 | N34: ='[1]Measure Setup - NG TRC'!BO48 -> 76954.11255 | O34: ='[1]Measure Setup - NG TRC'!BR48 -> 4.16236554 | P34: ='[1]Measure Setup - NG TRC'!BT48 -> 2.032753082
B35: ='[1]Measure Setup - NG TRC'!G49 -> Condensate return | C35: ='[1]Measure Setup - NG TRC'!I49 -> 20 | D35: ='[1]Measure Setup - NG TRC'!J49 -> 0.02 | E35: ='[1]Measure Setup - NG TRC'!AY49 -> 78435.95488 | F35: 2081081.318 | G35: N/A | H35: ='[1]Measure Setup - NG TRC'!BB49 -> 80000 | I35: ='[1]Measure Setup - NG TRC'!BC49 -> 15000 | J35: ='[1]Measure Setup - NG TRC'!BD49 -> 1200 | K35: ='[1]Measure Setup - NG TRC'!BE49 -> Now | L35: ='[1]Measure Setup - NG TRC'!BK49 -> 1568.719098 | M35: 41621.62636 | N35: ='[1]Measure Setup - NG TRC'!BO49 -> 46251.39981 | O35: ='[1]Measure Setup - NG TRC'!BR49 -> 6.051602406 | P35: ='[1]Measure Setup - NG TRC'!BT49 -> 1.439584077
B36: ='[1]Measure Setup - NG TRC'!G50 -> Steam trap survey and repair | C36: ='[1]Measure Setup - NG TRC'!I50 -> 3 | D36: ='[1]Measure Setup - NG TRC'!J50 -> 0.04 | E36: ='[1]Measure Setup - NG TRC'!AY50 -> 78435.95488 | F36: =(1/0.03769)*E36 -> 2081081.318 | G36: N/A | H36: ='[1]Measure Setup - NG TRC'!BB50 -> 35000 | I36: ='[1]Measure Setup - NG TRC'!BC50 -> 1500 | J36: ='[1]Measure Setup - NG TRC'!BD50 -> 0 | K36: ='[1]Measure Setup - NG TRC'!BE50 -> Now | L36: ='[1]Measure Setup - NG TRC'!BK50 -> 3137.438195 | M36: =IF(L36="","",(1/0.03769)*L36) -> 83243.25272 | N36: ='[1]Measure Setup - NG TRC'!BO50 -> 46089.30659 | O36: ='[1]Measure Setup - NG TRC'!BR50 -> 1.067462703 | P36: ='[1]Measure Setup - NG TRC'!BT50 -> 2.262720728
B37: ='[1]Measure Setup - NG TRC'!G51 -> Instantaneous Steam Generation | C37: ='[1]Measure Setup - NG TRC'!I51 -> 15 | D37: ='[1]Measure Setup - NG TRC'!J51 -> 0.15 | E37: ='[1]Measure Setup - NG TRC'!AY51 -> 78435.95488 | F37: =(1/0.03769)*E37 -> 2081081.318 | G37: ='[1]Measure Setup - NG TRC'!AZ51 -> 135000 | H37: ='[1]Measure Setup - NG TRC'!BB51 -> 180000 | I37: ='[1]Measure Setup - NG TRC'!BC51 -> 28000 | J37: ='[1]Measure Setup - NG TRC'!BD51 -> 1500 | K37: ='[1]Measure Setup - NG TRC'!BE51 -> EOL | L37: ='[1]Measure Setup - NG TRC'!BK51 -> 11765.39323 | M37: =IF(L37="","",(1/0.03769)*L37) -> 312162.1977 | N37: ='[1]Measure Setup - NG TRC'!BO51 -> 936275.1521 | O37: ='[1]Measure Setup - NG TRC'!BR51 -> 0.587888918 | P37: ='[1]Measure Setup - NG TRC'!BT51 -> 17.59793956
A38: Large (3,000 BHP) | B38: ='[1]Measure Setup - NG TRC'!G34 -> Economizer | C38: ='[1]Measure Setup - NG TRC'!I34 -> 20 | D38: ='[1]Measure Setup - NG TRC'!J34 -> 0.04 | E38: ='[1]Measure Setup - NG TRC'!CF34 -> 813409.9024 | F38: 21581584.04 | G38: N/A | H38: ='[1]Measure Setup - NG TRC'!CI34 -> 350000 | I38: ='[1]Measure Setup - NG TRC'!CJ34 -> 40000 | J38: ='[1]Measure Setup - NG TRC'!CK34 -> 2000 | K38: ='[1]Measure Setup - NG TRC'!CL34 -> Now | L38: ='[1]Measure Setup - NG TRC'!CR34 -> 32536.3961 | M38: 863263.3616 | N38: ='[1]Measure Setup - NG TRC'!CV34 -> 2734524.677 | O38: ='[1]Measure Setup - NG TRC'!CY34 -> 1.111752445 | P38: ='[1]Measure Setup - NG TRC'!DA34 -> 7.718286061
B39: ='[1]Measure Setup - NG TRC'!G35 -> Blowdown heat recovery | C39: ='[1]Measure Setup - NG TRC'!I35 -> 20 | D39: ='[1]Measure Setup - NG TRC'!J35 -> 0.02 | E39: ='[1]Measure Setup - NG TRC'!CF35 -> 813409.9024 | F39: 21581584.04 | G39: N/A | H39: ='[1]Measure Setup - NG TRC'!CI35 -> 200000 | I39: ='[1]Measure Setup - NG TRC'!CJ35 -> 25000 | J39: ='[1]Measure Setup - NG TRC'!CK35 -> 5000 | K39: ='[1]Measure Setup - NG TRC'!CL35 -> Now | L39: ='[1]Measure Setup - NG TRC'!CR35 -> 16268.19805 | M39: 431631.6808 | N39: ='[1]Measure Setup - NG TRC'!CV35 -> 1303208.083 | O39: ='[1]Measure Setup - NG TRC'!CY35 -> 1.334894652 | P39: ='[1]Measure Setup - NG TRC'!DA35 -> 5.870571096
B40: ='[1]Measure Setup - NG TRC'!G36 -> Boiler combustion air preheat | C40: ='[1]Measure Setup - NG TRC'!I36 -> 15 | D40: ='[1]Measure Setup - NG TRC'!J36 -> 0.05 | E40: ='[1]Measure Setup - NG TRC'!CF36 -> 813409.9024 | F40: 21581584.04 | G40: N/A | H40: ='[1]Measure Setup - NG TRC'!CI36 -> 500000 | I40: ='[1]Measure Setup - NG TRC'!CJ36 -> 60000 | J40: ='[1]Measure Setup - NG TRC'!CK36 -> 7000 | K40: ='[1]Measure Setup - NG TRC'!CL36 -> Now | L40: ='[1]Measure Setup - NG TRC'!CR36 -> 40670.49512 | M40: 1079079.202 | N40: ='[1]Measure Setup - NG TRC'!CV36 -> 2818258.628 | O40: ='[1]Measure Setup - NG TRC'!CY36 -> 1.299726571 | P40: ='[1]Measure Setup - NG TRC'!DA36 -> 5.595667079
B41: ='[1]Measure Setup - NG TRC'!G37 -> Process heat recovery to preheat makeup water | C41: ='[1]Measure Setup - NG TRC'!I37 -> 20 | D41: ='[1]Measure Setup - NG TRC'!J37 -> 0.06 | E41: ='[1]Measure Setup - NG TRC'!CF37 -> 813409.9024 | F41: 21581584.04 | G41: N/A | H41: ='[1]Measure Setup - NG TRC'!CI37 -> 400000 | I41: ='[1]Measure Setup - NG TRC'!CJ37 -> 50000 | J41: ='[1]Measure Setup - NG TRC'!CK37 -> 5000 | K41: ='[1]Measure Setup - NG TRC'!CL37 -> Now | L41: ='[1]Measure Setup - NG TRC'!CR37 -> 48804.59415 | M41: 1294895.042 | N41: ='[1]Measure Setup - NG TRC'!CV37 -> 4219759.888 | O41: ='[1]Measure Setup - NG TRC'!CY37 -> 0.8635501194 | P41: ='[1]Measure Setup - NG TRC'!DA37 -> 9.566860701
B42: ='[1]Measure Setup - NG TRC'!G41 -> Boiler right sizing and load management | C42: ='[1]Measure Setup - NG TRC'!I41 -> 20 | D42: ='[1]Measure Setup - NG TRC'!J41 -> 0.1 | E42: ='[1]Measure Setup - NG TRC'!CF41 -> 813409.9024 | F42: 21581584.04 | G42: ='[1]Measure Setup - NG TRC'!CG41 -> 2800000 | H42: ='[1]Measure Setup - NG TRC'!CI41 -> 2700000 | I42: ='[1]Measure Setup - NG TRC'!CJ41 -> 150000 | J42: ='[1]Measure Setup - NG TRC'!CK41 -> -10000 | K42: ='[1]Measure Setup - NG TRC'!CL41 -> EOL | L42: ='[1]Measure Setup - NG TRC'!CR41 -> 81340.99024 | M42: 2158158.404 | N42: ='[1]Measure Setup - NG TRC'!CV41 -> 8039015.148 | O42: ='[1]Measure Setup - NG TRC'!CY41 -> 0.04461839654 | P42: ='[1]Measure Setup - NG TRC'!DA41 -> N/A
B43: ='[1]Measure Setup - NG TRC'!G42 -> High efficiency burners | C43: ='[1]Measure Setup - NG TRC'!I42 -> 20 | D43: ='[1]Measure Setup - NG TRC'!J42 -> 0.05 | E43: ='[1]Measure Setup - NG TRC'!CF42 -> 813409.9024 | F43: 21581584.04 | G43: N/A | H43: ='[1]Measure Setup - NG TRC'!CI42 -> 400000 | I43: ='[1]Measure Setup - NG TRC'!CJ42 -> 60000 | J43: ='[1]Measure Setup - NG TRC'!CK42 -> 0 | K43: ='[1]Measure Setup - NG TRC'!CL42 -> Now | L43: ='[1]Measure Setup - NG TRC'!CR42 -> 40670.49512 | M43: 1079079.202 | N43: ='[1]Measure Setup - NG TRC'!CV42 -> 3466939.755 | O43: ='[1]Measure Setup - NG TRC'!CY42 -> 1.037799356 | P43: ='[1]Measure Setup - NG TRC'!DA42 -> 8.536825555
B44: ='[1]Measure Setup - NG TRC'!G43 -> Insulation | C44: ='[1]Measure Setup - NG TRC'!I43 -> 15 | D44: ='[1]Measure Setup - NG TRC'!J43 -> 0.05 | E44: ='[1]Measure Setup - NG TRC'!CF43 -> 813409.9024 | F44: 21581584.04 | G44: N/A | H44: ='[1]Measure Setup - NG TRC'!CI43 -> 150000 | I44: ='[1]Measure Setup - NG TRC'!CJ43 -> 30000 | J44: ='[1]Measure Setup - NG TRC'!CK43 -> 1500 | K44: ='[1]Measure Setup - NG TRC'!CL43 -> Now | L44: ='[1]Measure Setup - NG TRC'!CR43 -> 40670.49512 | M44: 1079079.202 | N44: ='[1]Measure Setup - NG TRC'!CV43 -> 3240092.066 | O44: ='[1]Measure Setup - NG TRC'!CY43 -> 0.4108699653 | P44: ='[1]Measure Setup - NG TRC'!DA43 -> 17.92757418
B45: ='[1]Measure Setup - NG TRC'!G44 -> Advanced boiler controls | C45: ='[1]Measure Setup - NG TRC'!I44 -> 15 | D45: ='[1]Measure Setup - NG TRC'!J44 -> 0.03 | E45: ='[1]Measure Setup - NG TRC'!CF44 -> 813409.9024 | F45: 21581584.04 | G45: N/A | H45: ='[1]Measure Setup - NG TRC'!CI44 -> 200000 | I45: ='[1]Measure Setup - NG TRC'!CJ44 -> 40000 | J45: ='[1]Measure Setup - NG TRC'!CK44 -> 3000 | K45: ='[1]Measure Setup - NG TRC'!CL44 -> Now | L45: ='[1]Measure Setup - NG TRC'!CR44 -> 24402.29707 | M45: 647447.5212 | N45: ='[1]Measure Setup - NG TRC'!CV44 -> 1796082.473 | O45: ='[1]Measure Setup - NG TRC'!CY44 -> 0.9241393377 | P45: ='[1]Measure Setup - NG TRC'!DA44 -> 7.83393391
B46: ='[1]Measure Setup - NG TRC'!G45 -> Blowdown control | C46: ='[1]Measure Setup - NG TRC'!I45 -> 20 | D46: ='[1]Measure Setup - NG TRC'!J45 -> 0.01 | E46: ='[1]Measure Setup - NG TRC'!CF45 -> 813409.9024 | F46: 21581584.04 | G46: N/A | H46: ='[1]Measure Setup - NG TRC'!CI45 -> 120000 | I46: ='[1]Measure Setup - NG TRC'!CJ45 -> 12000 | J46: ='[1]Measure Setup - NG TRC'!CK45 -> 2000 | K46: ='[1]Measure Setup - NG TRC'!CL45 -> Now | L46: ='[1]Measure Setup - NG TRC'!CR45 -> 8134.099024 | M46: 215815.8404 | N46: ='[1]Measure Setup - NG TRC'!CV45 -> 636360.8236 | O46: ='[1]Measure Setup - NG TRC'!CY45 -> 1.546466941 | P46: ='[1]Measure Setup - NG TRC'!DA45 -> 5.270100582
B47: ='[1]Measure Setup - NG TRC'!G46 -> Boiler water treatment | C47: ='[1]Measure Setup - NG TRC'!I46 -> 10 | D47: ='[1]Measure Setup - NG TRC'!J46 -> 0.01 | E47: ='[1]Measure Setup - NG TRC'!CF46 -> 813409.9024 | F47: 21581584.04 | G47: N/A | H47: ='[1]Measure Setup - NG TRC'!CI46 -> 50000 | I47: ='[1]Measure Setup - NG TRC'!CJ46 -> 8000 | J47: ='[1]Measure Setup - NG TRC'!CK46 -> 3000 | K47: ='[1]Measure Setup - NG TRC'!CL46 -> Now | L47: ='[1]Measure Setup - NG TRC'!CR46 -> 8134.099024 | M47: 215815.8404 | N47: ='[1]Measure Setup - NG TRC'!CV46 -> 463415.8238 | O47: ='[1]Measure Setup - NG TRC'!CY46 -> 0.7122081321 | P47: ='[1]Measure Setup - NG TRC'!DA46 -> 7.062977663
B48: ='[1]Measure Setup - NG TRC'!G47 -> Boiler maintenance | C48: ='[1]Measure Setup - NG TRC'!I47 -> 5 | D48: ='[1]Measure Setup - NG TRC'!J47 -> 0.05 | E48: ='[1]Measure Setup - NG TRC'!CF47 -> 813409.9024 | F48: 21581584.04 | G48: N/A | H48: ='[1]Measure Setup - NG TRC'!CI47 -> 0 | I48: ='[1]Measure Setup - NG TRC'!CJ47 -> 0 | J48: ='[1]Measure Setup - NG TRC'!CK47 -> 30000 | K48: ='[1]Measure Setup - NG TRC'!CL47 -> Now | L48: ='[1]Measure Setup - NG TRC'!CR47 -> 40670.49512 | M48: 1079079.202 | N48: ='[1]Measure Setup - NG TRC'!CV47 -> 1508924.667 | O48: ='[1]Measure Setup - NG TRC'!CY47 -> 0.07259605398 | P48: ='[1]Measure Setup - NG TRC'!DA47 -> 14.26835086
B49: ='[1]Measure Setup - NG TRC'!G48 -> Minimize deaerator vent losses | C49: ='[1]Measure Setup - NG TRC'!I48 -> 20 | D49: ='[1]Measure Setup - NG TRC'!J48 -> 0.02 | E49: ='[1]Measure Setup - NG TRC'!CF48 -> 813409.9024 | F49: 21581584.04 | G49: N/A | H49: ='[1]Measure Setup - NG TRC'!CI48 -> 150000 | I49: ='[1]Measure Setup - NG TRC'!CJ48 -> 15000 | J49: ='[1]Measure Setup - NG TRC'!CK48 -> 2000 | K49: ='[1]Measure Setup - NG TRC'!CL48 -> Now | L49: ='[1]Measure Setup - NG TRC'!CR48 -> 16268.19805 | M49: 431631.6808 | N49: ='[1]Measure Setup - NG TRC'!CV48 -> 1388748.775 | O49: ='[1]Measure Setup - NG TRC'!CY48 -> 0.9526621568 | P49: ='[1]Measure Setup - NG TRC'!DA48 -> 8.629350604
B50: ='[1]Measure Setup - NG TRC'!G49 -> Condensate return | C50: ='[1]Measure Setup - NG TRC'!I49 -> 20 | D50: ='[1]Measure Setup - NG TRC'!J49 -> 0.02 | E50: ='[1]Measure Setup - NG TRC'!CF49 -> 813409.9024 | F50: 21581584.04 | G50: N/A | H50: ='[1]Measure Setup - NG TRC'!CI49 -> 350000 | I50: ='[1]Measure Setup - NG TRC'!CJ49 -> 80000 | J50: ='[1]Measure Setup - NG TRC'!CK49 -> 10000 | K50: ='[1]Measure Setup - NG TRC'!CL49 -> Now | L50: ='[1]Measure Setup - NG TRC'!CR49 -> 16268.19805 | M50: 431631.6808 | N50: ='[1]Measure Setup - NG TRC'!CV49 -> 1055640.265 | O50: ='[1]Measure Setup - NG TRC'!CY49 -> 2.630033635 | P50: ='[1]Measure Setup - NG TRC'!DA49 -> 3.049247205
B51: ='[1]Measure Setup - NG TRC'!G50 -> Steam trap survey and repair | C51: ='[1]Measure Setup - NG TRC'!I50 -> 3 | D51: ='[1]Measure Setup - NG TRC'!J50 -> 0.04 | E51: ='[1]Measure Setup - NG TRC'!CF50 -> 813409.9024 | F51: =(1/0.03769)*E51 -> 21581584.04 | G51: N/A | H51: ='[1]Measure Setup - NG TRC'!CI50 -> 200000 | I51: ='[1]Measure Setup - NG TRC'!CJ50 -> 30000 | J51: ='[1]Measure Setup - NG TRC'!CK50 -> 0 | K51: ='[1]Measure Setup - NG TRC'!CL50 -> Now | L51: ='[1]Measure Setup - NG TRC'!CR50 -> 32536.3961 | M51: =IF(L51="","",(1/0.03769)*L51) -> 863263.3616 | N51: ='[1]Measure Setup - NG TRC'!CV50 -> 626481.698 | O51: ='[1]Measure Setup - NG TRC'!CY50 -> 0.6486245977 | P51: ='[1]Measure Setup - NG TRC'!DA50 -> 3.723833469

Sheet TRC - Process Direct Heat
A1: Process Direct Heat (Furnaces / Kilns / Ovens / Dryers)
A3: System / Technology Size Category | B3: Measure | C3: Measure Life (Years) | D3: Individual Measure % Savings | E3: Baseline Energy Consumption (GJ) | F3: Baseline Gas Consumption (m3) | G3: Baseline Technology Capital Cost | H3: Measure Capital Cost (Full) | I3: Installation / Engineering Cost (Full) | J3: Incremental Annual O&M Cost | K3: Now/ EOL | L3: Annual Gas Savings (GJ) | M3: Annual Gas Savings (m3) | N3: Net Measure TRC | O3: Simple Payback Period (Yrs) | P3: B/C Ratio
A4: Small (2 MMBTU) | B4: ='[1]Measure Setup - NG TRC'!G62 -> Exhaust gas heat recovery | C4: ='[1]Measure Setup - NG TRC'!I62 -> 15 | D4: ='[1]Measure Setup - NG TRC'!J62 -> 0.15 | E4: ='[1]Measure Setup - NG TRC'!R62 -> 9472.464 | F4: =(1/0.03769)*E4 -> 251325.6567 | G4: N/A | H4: ='[1]Measure Setup - NG TRC'!U62 -> 30000 | I4: ='[1]Measure Setup - NG TRC'!V62 -> 5000 | J4: ='[1]Measure Setup - NG TRC'!W62 -> 1000 | K4: ='[1]Measure Setup - NG TRC'!X62 -> Now | L4: ='[1]Measure Setup - NG TRC'!AD62 -> 1420.8696 | M4: =IF(L4="","",(1/0.03769)*L4) -> 37698.8485 | N4: ='[1]Measure Setup - NG TRC'!AH62 -> 77277.28315 | O4: ='[1]Measure Setup - NG TRC'!AK62 -> 2.485280783 | P4: ='[1]Measure Setup - NG TRC'!AM62 -> 2.813761887
B5: ='[1]Measure Setup - NG TRC'!G63 -> High efficiency burners and burner controls | C5: ='[1]Measure Setup - NG TRC'!I63 -> 20 | D5: ='[1]Measure Setup - NG TRC'!J63 -> 0.1 | E5: ='[1]Measure Setup - NG TRC'!R63 -> 9472.464 | F5: 251325.6567 | G5: N/A | H5: ='[1]Measure Setup - NG TRC'!U63 -> 15000 | I5: ='[1]Measure Setup - NG TRC'!V63 -> 2000 | J5: ='[1]Measure Setup - NG TRC'!W63 -> 0 | K5: ='[1]Measure Setup - NG TRC'!X63 -> Now | L5: ='[1]Measure Setup - NG TRC'!AD63 -> 947.2464 | M5: 25132.56567 | N5: ='[1]Measure Setup - NG TRC'!AH63 -> 74461.37845 | O5: ='[1]Measure Setup - NG TRC'!AK63 -> 1.646724636 | P5: ='[1]Measure Setup - NG TRC'!AM63 -> 5.380081085
B6: ='[1]Measure Setup - NG TRC'!G64 -> Insulation | C6: ='[1]Measure Setup - NG TRC'!I64 -> 15 | D6: ='[1]Measure Setup - NG TRC'!J64 -> 0.05 | E6: ='[1]Measure Setup - NG TRC'!R64 -> 9472.464 | F6: 251325.6567 | G6: N/A | H6: ='[1]Measure Setup - NG TRC'!U64 -> 8000 | I6: ='[1]Measure Setup - NG TRC'!V64 -> 500 | J6: ='[1]Measure Setup - NG TRC'!W64 -> 300 | K6: ='[1]Measure Setup - NG TRC'!X64 -> Now | L6: ='[1]Measure Setup - NG TRC'!AD64 -> 473.6232 | M6: 12566.28283 | N6: ='[1]Measure Setup - NG TRC'!AH64 -> 29179.29703 | O6: ='[1]Measure Setup - NG TRC'!AK64 -> 1.810043501 | P6: ='[1]Measure Setup - NG TRC'!AM64 -> 3.706341472
B7: ='[1]Measure Setup - NG TRC'!G66 -> High efficiency ovens | C7: ='[1]Measure Setup - NG TRC'!I66 -> 20 | D7: ='[1]Measure Setup - NG TRC'!J66 -> 0.12 | E7: ='[1]Measure Setup - NG TRC'!R66 -> 9472.464 | F7: 251325.6567 | G7: N/A | H7: ='[1]Measure Setup - NG TRC'!U66 -> 18000 | I7: ='[1]Measure Setup - NG TRC'!V66 -> 2000 | J7: ='[1]Measure Setup - NG TRC'!W66 -> 0 | K7: ='[1]Measure Setup - NG TRC'!X66 -> Now | L7: ='[1]Measure Setup - NG TRC'!AD66 -> 1136.69568 | M7: 30159.0788 | N7: ='[1]Measure Setup - NG TRC'!AH66 -> 89753.65414 | O7: ='[1]Measure Setup - NG TRC'!AK66 -> 1.614435917 | P7: ='[1]Measure Setup - NG TRC'!AM66 -> 5.487682707
B8: ='[1]Measure Setup - NG TRC'!G67 -> High efficiency dryers | C8: ='[1]Measure Setup - NG TRC'!I67 -> 20 | D8: ='[1]Measure Setup - NG TRC'!J67 -> 0.12 | E8: ='[1]Measure Setup - NG TRC'!R67 -> 9472.464 | F8: 251325.6567 | G8: N/A | H8: ='[1]Measure Setup - NG TRC'!U67 -> 18000 | I8: ='[1]Measure Setup - NG TRC'!V67 -> 2000 | J8: ='[1]Measure Setup - NG TRC'!W67 -> 0 | K8: ='[1]Measure Setup - NG TRC'!X67 -> Now | L8: ='[1]Measure Setup - NG TRC'!AD67 -> 1136.69568 | M8: 30159.0788 | N8: ='[1]Measure Setup - NG TRC'!AH67 -> 89753.65414 | O8: ='[1]Measure Setup - NG TRC'!AK67 -> 1.614435917 | P8: ='[1]Measure Setup - NG TRC'!AM67 -> 5.487682707
B9: ='[1]Measure Setup - NG TRC'!G70 -> Air curtains | C9: ='[1]Measure Setup - NG TRC'!I70 -> 20 | D9: ='[1]Measure Setup - NG TRC'!J70 -> 0.15 | E9: ='[1]Measure Setup - NG TRC'!R70 -> 9472.464 | F9: 251325.6567 | G9: N/A | H9: ='[1]Measure Setup - NG TRC'!U70 -> 15000 | I9: ='[1]Measure Setup - NG TRC'!V70 -> 2000 | J9: ='[1]Measure Setup - NG TRC'!W70 -> 1000 | K9: ='[1]Measure Setup - NG TRC'!X70 -> Now | L9: ='[1]Measure Setup - NG TRC'!AD70 -> 1420.8696 | M9: 37698.8485 | N9: ='[1]Measure Setup - NG TRC'!AH70 -> 111678.504 | O9: ='[1]Measure Setup - NG TRC'!AK70 -> 1.242640392 | P9: ='[1]Measure Setup - NG TRC'!AM70 -> 5.377220885
A10: Medium (20 MMBTU) | B10: ='[1]Measure Setup - NG TRC'!G62 -> Exhaust gas heat recovery | C10: ='[1]Measure Setup - NG TRC'!I62 -> 15 | D10: ='[1]Measure Setup - NG TRC'!J62 -> 0.15 | E10: ='[1]Measure Setup - NG TRC'!AY62 -> 106565.22 | F10: =(1/0.03769)*E10 -> 2827413.638 | G10: N/A | H10: ='[1]Measure Setup - NG TRC'!BB62 -> 120000 | I10: ='[1]Measure Setup - NG TRC'!BC62 -> 35000 | J10: ='[1]Measure Setup - NG TRC'!BD62 -> 3000 | K10: ='[1]Measure Setup - NG TRC'!BE62 -> Now | L10: ='[1]Measure Setup - NG TRC'!BK62 -> 15984.783 | M10: =IF(L10="","",(1/0.03769)*L10) -> 424112.0456 | N10: ='[1]Measure Setup - NG TRC'!BO62 -> 1170869.591 | O10: ='[1]Measure Setup - NG TRC'!BR62 -> 0.9228462338 | P10: ='[1]Measure Setup - NG TRC'!BT62 -> 7.584642842
B11: ='[1]Measure Setup - NG TRC'!G63 -> High efficiency burners and burner controls | C11: ='[1]Measure Setup - NG TRC'!I63 -> 20 | D11: ='[1]Measure Setup - NG TRC'!J63 -> 0.1 | E11: ='[1]Measure Setup - NG TRC'!AY63 -> 106565.22 | F11: 2827413.638 | G11: N/A | H11: ='[1]Measure Setup - NG TRC'!BB63 -> 60000 | I11: ='[1]Measure Setup - NG TRC'!BC63 -> 4000 | J11: ='[1]Measure Setup - NG TRC'!BD63 -> 0 | K11: ='[1]Measure Setup - NG TRC'!BE63 -> Now | L11: ='[1]Measure Setup - NG TRC'!BK63 -> 10656.522 | M11: 282741.3638 | N11: ='[1]Measure Setup - NG TRC'!BO63 -> 964940.5076 | O11: ='[1]Measure Setup - NG TRC'!BR63 -> 0.5510607931 | P11: ='[1]Measure Setup - NG TRC'!BT63 -> 16.07719543
B12: ='[1]Measure Setup - NG TRC'!G64 -> Insulation | C12: ='[1]Measure Setup - NG TRC'!I64 -> 15 | D12: ='[1]Measure Setup - NG TRC'!J64 -> 0.05 | E12: ='[1]Measure Setup - NG TRC'!AY64 -> 106565.22 | F12: 2827413.638 | G12: N/A | H12: ='[1]Measure Setup - NG TRC'!BB64 -> 40000 | I12: ='[1]Measure Setup - NG TRC'!BC64 -> 3000 | J12: ='[1]Measure Setup - NG TRC'!BD64 -> 1000 | K12: ='[1]Measure Setup - NG TRC'!BE64 -> Now | L12: ='[1]Measure Setup - NG TRC'!BK64 -> 5328.261 | M12: 141370.6819 | N12: ='[1]Measure Setup - NG TRC'!BO64 -> 398956.5305 | O12: ='[1]Measure Setup - NG TRC'!BR64 -> 0.7709854612 | P12: ='[1]Measure Setup - NG TRC'!BT64 -> 8.883569214
B13: ='[1]Measure Setup - NG TRC'!G65 -> Advanced heating and process controls | C13: ='[1]Measure Setup - NG TRC'!I65 -> 15 | D13: ='[1]Measure Setup - NG TRC'!J65 -> 0.1 | E13: ='[1]Measure Setup - NG TRC'!AY65 -> 106565.22 | F13: 2827413.638 | G13: N/A | H13: ='[1]Measure Setup - NG TRC'!BB65 -> 100000 | I13: ='[1]Measure Setup - NG TRC'!BC65 -> 25000 | J13: ='[1]Measure Setup - NG TRC'!BD65 -> 3000 | K13: ='[1]Measure Setup - NG TRC'!BE65 -> Now | L13: ='[1]Measure Setup - NG TRC'!BK65 -> 10656.522 | M13: 282741.3638 | N13: ='[1]Measure Setup - NG TRC'!BO65 -> 751306.9814 | O13: ='[1]Measure Setup - NG TRC'!BR65 -> 1.131345339 | P13: ='[1]Measure Setup - NG TRC'!BT65 -> 6.082640606
B14: ='[1]Measure Setup - NG TRC'!G66 -> High efficiency ovens | C14: ='[1]Measure Setup - NG TRC'!I66 -> 20 | D14: ='[1]Measure Setup - NG TRC'!J66 -> 0.12 | E14: ='[1]Measure Setup - NG TRC'!AY66 -> 106565.22 | F14: 2827413.638 | G14: N/A | H14: ='[1]Measure Setup - NG TRC'!BB66 -> 100000 | I14: ='[1]Measure Setup - NG TRC'!BC66 -> 15000 | J14: ='[1]Measure Setup - NG TRC'!BD66 -> 0 | K14: ='[1]Measure Setup - NG TRC'!BE66 -> Now | L14: ='[1]Measure Setup - NG TRC'!BK66 -> 12787.8264 | M14: 339289.6365 | N14: ='[1]Measure Setup - NG TRC'!BO66 -> 1119728.609 | O14: ='[1]Measure Setup - NG TRC'!BR66 -> 0.8251561356 | P14: ='[1]Measure Setup - NG TRC'!BT66 -> 10.73677051
B15: ='[1]Measure Setup - NG TRC'!G67 -> High efficiency dryers | C15: ='[1]Measure Setup - NG TRC'!I67 -> 20 | D15: ='[1]Measure Setup - NG TRC'!J67 -> 0.12 | E15: ='[1]Measure Setup - NG TRC'!AY67 -> 106565.22 | F15: 2827413.638 | G15: N/A | H15: ='[1]Measure Setup - NG TRC'!BB67 -> 100000 | I15: ='[1]Measure Setup - NG TRC'!BC67 -> 15000 | J15: ='[1]Measure Setup - NG TRC'!BD67 -> 0 | K15: ='[1]Measure Setup - NG TRC'!BE67 -> Now | L15: ='[1]Measure Setup - NG TRC'!BK67 -> 12787.8264 | M15: 339289.6365 | N15: ='[1]Measure Setup - NG TRC'!BO67 -> 1119728.609 | O15: ='[1]Measure Setup - NG TRC'!BR67 -> 0.8251561356 | P15: ='[1]Measure Setup - NG TRC'!BT67 -> 10.73677051
B16: ='[1]Measure Setup - NG TRC'!G68 -> High Efficiency kilns | C16: ='[1]Measure Setup - NG TRC'!I68 -> 20 | D16: ='[1]Measure Setup - NG TRC'!J68 -> 0.14 | E16: ='[1]Measure Setup - NG TRC'!AY68 -> 106565.22 | F16: 2827413.638 | G16: N/A | H16: ='[1]Measure Setup - NG TRC'!BB68 -> 100000 | I16: ='[1]Measure Setup - NG TRC'!BC68 -> 15000 | J16: ='[1]Measure Setup - NG TRC'!BD68 -> 0 | K16: ='[1]Measure Setup - NG TRC'!BE68 -> Now | L16: ='[1]Measure Setup - NG TRC'!BK68 -> 14919.1308 | M16: 395837.9093 | N16: ='[1]Measure Setup - NG TRC'!BO68 -> 1325516.711 | O16: ='[1]Measure Setup - NG TRC'!BR68 -> 0.7072766876 | P16: ='[1]Measure Setup - NG TRC'!BT68 -> 12.52623227
B17: ='[1]Measure Setup - NG TRC'!G69 -> High Efficiency Furnaces | C17: ='[1]Measure Setup - NG TRC'!I69 -> 20 | D17: ='[1]Measure Setup - NG TRC'!J69 -> 0.14 | E17: ='[1]Measure Setup - NG TRC'!AY69 -> 106565.22 | F17: 2827413.638 | G17: N/A | H17: ='[1]Measure Setup - NG TRC'!BB69 -> 100000 | I17: ='[1]Measure Setup - NG TRC'!BC69 -> 15000 | J17: ='[1]Measure Setup - NG TRC'!BD69 -> 0 | K17: ='[1]Measure Setup - NG TRC'!BE69 -> Now | L17: ='[1]Measure Setup - NG TRC'!BK69 -> 14919.1308 | M17: 395837.9093 | N17: ='[1]Measure Setup - NG TRC'!BO69 -> 1325516.711 | O17: ='[1]Measure Setup - NG TRC'!BR69 -> 0.7072766876 | P17: ='[1]Measure Setup - NG TRC'!BT69 -> 12.52623227
B18: ='[1]Measure Setup - NG TRC'!G70 -> Air curtains | C18: ='[1]Measure Setup - NG TRC'!I70 -> 20 | D18: ='[1]Measure Setup - NG TRC'!J70 -> 0.15 | E18: ='[1]Measure Setup - NG TRC'!AY70 -> 106565.22 | F18: 2827413.638 | G18: N/A | H18: ='[1]Measure Setup - NG TRC'!BB70 -> 80000 | I18: ='[1]Measure Setup - NG TRC'!BC70 -> 18000 | J18: ='[1]Measure Setup - NG TRC'!BD70 -> 1000 | K18: ='[1]Measure Setup - NG TRC'!BE70 -> Now | L18: ='[1]Measure Setup - NG TRC'!BK70 -> 15984.783 | M18: 424112.0456 | N18: ='[1]Measure Setup - NG TRC'!BO70 -> 1436897.198 | O18: ='[1]Measure Setup - NG TRC'!BR70 -> 0.5715623345 | P18: ='[1]Measure Setup - NG TRC'!BT70 -> 14.49027436
A19: Large (100 MMBTU) | B19: ='[1]Measure Setup - NG TRC'!G62 -> Exhaust gas heat recovery | C19: ='[1]Measure Setup - NG TRC'!I62 -> 15 | D19: ='[1]Measure Setup - NG TRC'!J62 -> 0.15 | E19: ='[1]Measure Setup - NG TRC'!CF62 -> 828840.6 | F19: 21990994.96 | G19: N/A | H19: ='[1]Measure Setup - NG TRC'!CI62 -> 900000 | I19: ='[1]Measure Setup - NG TRC'!CJ62 -> 180000 | J19: ='[1]Measure Setup - NG TRC'!CK62 -> 10000 | K19: ='[1]Measure Setup - NG TRC'!CL62 -> Now | L19: ='[1]Measure Setup - NG TRC'!CR62 -> 124326.09 | M19: 3298649.244 | N19: ='[1]Measure Setup - NG TRC'!CV62 -> 9333733.438 | O19: ='[1]Measure Setup - NG TRC'!CY62 -> 0.8104315649 | P19: ='[1]Measure Setup - NG TRC'!DA62 -> 9.073739268
B20: ='[1]Measure Setup - NG TRC'!G63 -> High efficiency burners and burner controls | C20: ='[1]Measure Setup - NG TRC'!I63 -> 20 | D20: ='[1]Measure Setup - NG TRC'!J63 -> 0.1 | E20: ='[1]Measure Setup - NG TRC'!CF63 -> 828840.6 | F20: 21990994.96 | G20: N/A | H20: ='[1]Measure Setup - NG TRC'!CI63 -> 500000 | I20: ='[1]Measure Setup - NG TRC'!CJ63 -> 80000 | J20: ='[1]Measure Setup - NG TRC'!CK63 -> 5000 | K20: ='[1]Measure Setup - NG TRC'!CL63 -> Now | L20: ='[1]Measure Setup - NG TRC'!CR63 -> 82884.06 | M20: 2199099.496 | N20: ='[1]Measure Setup - NG TRC'!CV63 -> 7380302.796 | O20: ='[1]Measure Setup - NG TRC'!CY63 -> 0.651224098 | P20: ='[1]Measure Setup - NG TRC'!DA63 -> 12.8546166
B21: ='[1]Measure Setup - NG TRC'!G64 -> Insulation | C21: ='[1]Measure Setup - NG TRC'!I64 -> 15 | D21: ='[1]Measure Setup - NG TRC'!J64 -> 0.05 | E21: ='[1]Measure Setup - NG TRC'!CF64 -> 828840.6 | F21: 21990994.96 | G21: N/A | H21: ='[1]Measure Setup - NG TRC'!CI64 -> 250000 | I21: ='[1]Measure Setup - NG TRC'!CJ64 -> 30000 | J21: ='[1]Measure Setup - NG TRC'!CK64 -> 2000 | K21: ='[1]Measure Setup - NG TRC'!CL64 -> Now | L21: ='[1]Measure Setup - NG TRC'!CR64 -> 41442.03 | M21: 1099549.748 | N21: ='[1]Measure Setup - NG TRC'!CV64 -> 3201385.919 | O21: ='[1]Measure Setup - NG TRC'!CY64 -> 0.6271486785 | P21: ='[1]Measure Setup - NG TRC'!DA64 -> 11.84435658
B22: ='[1]Measure Setup - NG TRC'!G65 -> Advanced heating and process controls | C22: ='[1]Measure Setup - NG TRC'!I65 -> 15 | D22: ='[1]Measure Setup - NG TRC'!J65 -> 0.1 | E22: ='[1]Measure Setup - NG TRC'!CF65 -> 828840.6 | F22: 21990994.96 | G22: N/A | H22: ='[1]Measure Setup - NG TRC'!CI65 -> 500000 | I22: ='[1]Measure Setup - NG TRC'!CJ65 -> 6500 | J22: ='[1]Measure Setup - NG TRC'!CK65 -> 8000 | K22: ='[1]Measure Setup - NG TRC'!CL65 -> Now | L22: ='[1]Measure Setup - NG TRC'!CR65 -> 82884.06 | M22: 2199099.496 | N22: ='[1]Measure Setup - NG TRC'!CV65 -> 6425847.519 | O22: ='[1]Measure Setup - NG TRC'!CY65 -> 0.5746623939 | P22: ='[1]Measure Setup - NG TRC'!DA65 -> 12.32610023
B23: ='[1]Measure Setup - NG TRC'!G66 -> High efficiency ovens | C23: ='[1]Measure Setup - NG TRC'!I66 -> 20 | D23: ='[1]Measure Setup - NG TRC'!J66 -> 0.12 | E23: ='[1]Measure Setup - NG TRC'!CF66 -> 828840.6 | F23: 21990994.96 | G23: N/A | H23: ='[1]Measure Setup - NG TRC'!CI66 -> 1000000 | I23: ='[1]Measure Setup - NG TRC'!CJ66 -> 100000 | J23: ='[1]Measure Setup - NG TRC'!CK66 -> 0 | K23: ='[1]Measure Setup - NG TRC'!CL66 -> Now | L23: ='[1]Measure Setup - NG TRC'!CR66 -> 99460.872 | M23: 2638919.395 | N23: ='[1]Measure Setup - NG TRC'!CV66 -> 8503444.737 | O23: ='[1]Measure Setup - NG TRC'!CY66 -> 1.014788291 | P23: ='[1]Measure Setup - NG TRC'!DA66 -> 8.730404307
B24: ='[1]Measure Setup - NG TRC'!G67 -> High efficiency dryers | C24: ='[1]Measure Setup - NG TRC'!I67 -> 20 | D24: ='[1]Measure Setup - NG TRC'!J67 -> 0.12 | E24: ='[1]Measure Setup - NG TRC'!CF67 -> 828840.6 | F24: 21990994.96 | G24: N/A | H24: ='[1]Measure Setup - NG TRC'!CI67 -> 1000000 | I24: ='[1]Measure Setup - NG TRC'!CJ67 -> 100000 | J24: ='[1]Measure Setup - NG TRC'!CK67 -> 0 | K24: ='[1]Measure Setup - NG TRC'!CL67 -> Now | L24: ='[1]Measure Setup - NG TRC'!CR67 -> 99460.872 | M24: 2638919.395 | N24: ='[1]Measure Setup - NG TRC'!CV67 -> 8503444.737 | O24: ='[1]Measure Setup - NG TRC'!CY67 -> 1.014788291 | P24: ='[1]Measure Setup - NG TRC'!DA67 -> 8.730404307
B25: ='[1]Measure Setup - NG TRC'!G68 -> High Efficiency kilns | C25: ='[1]Measure Setup - NG TRC'!I68 -> 20 | D25: ='[1]Measure Setup - NG TRC'!J68 -> 0.14 | E25: ='[1]Measure Setup - NG TRC'!CF68 -> 828840.6 | F25: 21990994.96 | G25: N/A | H25: ='[1]Measure Setup - NG TRC'!CI68 -> 1000000 | I25: ='[1]Measure Setup - NG TRC'!CJ68 -> 100000 | J25: ='[1]Measure Setup - NG TRC'!CK68 -> 0 | K25: ='[1]Measure Setup - NG TRC'!CL68 -> Now | L25: ='[1]Measure Setup - NG TRC'!CR68 -> 116037.684 | M25: 3078739.294 | N25: ='[1]Measure Setup - NG TRC'!CV68 -> 10104018.86 | O25: ='[1]Measure Setup - NG TRC'!CY68 -> 0.8698185351 | P25: ='[1]Measure Setup - NG TRC'!DA68 -> 10.18547169
B26: ='[1]Measure Setup - NG TRC'!G69 -> High Efficiency Furnaces | C26: ='[1]Measure Setup - NG TRC'!I69 -> 20 | D26: ='[1]Measure Setup - NG TRC'!J69 -> 0.14 | E26: ='[1]Measure Setup - NG TRC'!CF69 -> 828840.6 | F26: 21990994.96 | G26: N/A | H26: ='[1]Measure Setup - NG TRC'!CI69 -> 1000000 | I26: ='[1]Measure Setup - NG TRC'!CJ69 -> 100000 | J26: ='[1]Measure Setup - NG TRC'!CK69 -> 0 | K26: ='[1]Measure Setup - NG TRC'!CL69 -> Now | L26: ='[1]Measure Setup - NG TRC'!CR69 -> 116037.684 | M26: 3078739.294 | N26: ='[1]Measure Setup - NG TRC'!CV69 -> 10104018.86 | O26: ='[1]Measure Setup - NG TRC'!CY69 -> 0.8698185351 | P26: ='[1]Measure Setup - NG TRC'!DA69 -> 10.18547169

Sheet TRC - Other Process
A1: Other Process
A3: System / Technology Size Category | B3: Measure | C3: Measure Life (Years) | D3: Individual Measure % Savings | E3: Baseline Energy Consumption (GJ) | F3: Baseline Gas Consumption (m3) | G3: Baseline Technology Capital Cost | H3: Measure Capital Cost (Full) | I3: Installation / Engineering Cost (Full) | J3: Incremental Annual O&M Cost | K3: Now/ EOL | L3: Annual Gas Savings (GJ) | M3: Annual Gas Savings (m3) | N3: Net Measure TRC | O3: Simple Payback Period (Yrs) | P3: B/C Ratio
A4: Medium (20 MMTBU) | B4: ='[1]Measure Setup - NG TRC'!G73 -> Pollution control measures | C4: ='[1]Measure Setup - NG TRC'!I73 -> 20 | D4: ='[1]Measure Setup - NG TRC'!J73 -> 0.1 | E4: ='[1]Measure Setup - NG TRC'!AY73 -> 106565.22 | F4: =(1/0.03769)*E4 -> 2827413.638 | G4: N/A | H4: ='[1]Measure Setup - NG TRC'!BB73 -> 80000 | I4: ='[1]Measure Setup - NG TRC'!BC73 -> 6400 | J4: ='[1]Measure Setup - NG TRC'!BD73 -> 20000 | K4: ='[1]Measure Setup - NG TRC'!BE73 -> Now | L4: ='[1]Measure Setup - NG TRC'!BK73 -> 10656.522 | M4: =IF(L4="","",(1/0.03769)*L4) -> 282741.3638 | N4: ='[1]Measure Setup - NG TRC'!BO73 -> 772269.2332 | O4: ='[1]Measure Setup - NG TRC'!BR73 -> 1.106723556 | P4: ='[1]Measure Setup - NG TRC'!BT73 -> 4.008787154
B5: ='[1]Measure Setup - NG TRC'!G75 -> Hydrogen Atmospheres for Steel Batch Coil Annealing | C5: ='[1]Measure Setup - NG TRC'!I75 -> 15 | D5: ='[1]Measure Setup - NG TRC'!J75 -> 0.3 | E5: ='[1]Measure Setup - NG TRC'!AY75 -> 106565.22 | F5: =(1/0.03769)*E5 -> 2827413.638 | G5: N/A | H5: ='[1]Measure Setup - NG TRC'!BB75 -> 250000 | I5: ='[1]Measure Setup - NG TRC'!BC75 -> 60000 | J5: ='[1]Measure Setup - NG TRC'!BD75 -> 3000 | K5: ='[1]Measure Setup - NG TRC'!BE75 -> Now | L5: ='[1]Measure Setup - NG TRC'!BK75 -> 31969.566 | M5: =IF(L5="","",(1/0.03769)*L5) -> 848224.0913 | N5: ='[1]Measure Setup - NG TRC'!BO75 -> 2364557.421 | O5: ='[1]Measure Setup - NG TRC'!BR75 -> 0.9061461095 | P5: ='[1]Measure Setup - NG TRC'!BT75 -> 8.10465097
B6: ='[1]Measure Setup - NG TRC'!G76 -> Process Heat Recovery | C6: ='[1]Measure Setup - NG TRC'!I76 -> 15 | D6: ='[1]Measure Setup - NG TRC'!J76 -> 0.15 | E6: ='[1]Measure Setup - NG TRC'!AY76 -> 106565.22 | F6: 2827413.638 | G6: N/A | H6: ='[1]Measure Setup - NG TRC'!BB76 -> 300000 | I6: ='[1]Measure Setup - NG TRC'!BC76 -> 60000 | J6: ='[1]Measure Setup - NG TRC'!BD76 -> 10000 | K6: ='[1]Measure Setup - NG TRC'!BE76 -> Now | L6: ='[1]Measure Setup - NG TRC'!BK76 -> 15984.783 | M6: 424112.0456 | N6: ='[1]Measure Setup - NG TRC'!BO76 -> 912627.0348 | O6: ='[1]Measure Setup - NG TRC'!BR76 -> 2.253219839 | P6: ='[1]Measure Setup - NG TRC'!BT76 -> 3.092889444
A7: Large (100 MMBTU) | B7: ='[1]Measure Setup - NG TRC'!G73 -> Pollution control measures | C7: ='[1]Measure Setup - NG TRC'!I73 -> 20 | D7: ='[1]Measure Setup - NG TRC'!J73 -> 0.1 | E7: ='[1]Measure Setup - NG TRC'!CF73 -> 828840.6 | F7: 21990994.96 | G7: N/A | H7: ='[1]Measure Setup - NG TRC'!CI73 -> 1000000 | I7: ='[1]Measure Setup - NG TRC'!CJ73 -> 80000 | J7: ='[1]Measure Setup - NG TRC'!CK73 -> 125000 | K7: ='[1]Measure Setup - NG TRC'!CL73 -> Now | L7: ='[1]Measure Setup - NG TRC'!CR73 -> 82884.06 | M7: 2199099.496 | N7: ='[1]Measure Setup - NG TRC'!CV73 -> 5858675.15 | O7: ='[1]Measure Setup - NG TRC'!CY73 -> 1.548229705 | P7: ='[1]Measure Setup - NG TRC'!DA73 -> 3.732341918
B8: ='[1]Measure Setup - NG TRC'!G75 -> Hydrogen Atmospheres for Steel Batch Coil Annealing | C8: ='[1]Measure Setup - NG TRC'!I75 -> 15 | D8: ='[1]Measure Setup - NG TRC'!J75 -> 0.3 | E8: ='[1]Measure Setup - NG TRC'!CF75 -> 828840.6 | F8: 21990994.96 | G8: N/A | H8: ='[1]Measure Setup - NG TRC'!CI75 -> 2000000 | I8: ='[1]Measure Setup - NG TRC'!CJ75 -> 160000 | J8: ='[1]Measure Setup - NG TRC'!CK75 -> 10000 | K8: ='[1]Measure Setup - NG TRC'!CL75 -> Now | L8: ='[1]Measure Setup - NG TRC'!CR75 -> 248652.18 | M8: 6597298.488 | N8: ='[1]Measure Setup - NG TRC'!CV75 -> 18743527.67 | O8: ='[1]Measure Setup - NG TRC'!CY75 -> 0.8037260762 | P8: ='[1]Measure Setup - NG TRC'!DA75 -> 9.382387327
B9: ='[1]Measure Setup - NG TRC'!G76 -> Process Heat Recovery | C9: ='[1]Measure Setup - NG TRC'!I76 -> 15 | D9: ='[1]Measure Setup - NG TRC'!J76 -> 0.15 | E9: ='[1]Measure Setup - NG TRC'!CF76 -> 828840.6 | F9: 21990994.96 | G9: N/A | H9: ='[1]Measure Setup - NG TRC'!CI76 -> 1000000 | I9: ='[1]Measure Setup - NG TRC'!CJ76 -> 150000 | J9: ='[1]Measure Setup - NG TRC'!CK76 -> 25000 | K9: ='[1]Measure Setup - NG TRC'!CL76 -> Now | L9: ='[1]Measure Setup - NG TRC'!CR76 -> 124326.09 | M9: 3298649.244 | N9: ='[1]Measure Setup - NG TRC'!CV76 -> 9149642.245 | O9: ='[1]Measure Setup - NG TRC'!CY76 -> 0.883483609 | P9: ='[1]Measure Setup - NG TRC'!DA76 -> 7.827316849

Sheet TRC - HVAC
A1: Heating, Ventilation & Air Conditioning (HVAC)
A3: System / Technology Size Category | B3: Measure | C3: Measure Life (Years) | D3: Individual Measure % Savings | E3: Baseline Energy Consumption (GJ) | F3: Baseline Gas Consumption (m3) | G3: Baseline Technology Capital Cost | H3: Measure Capital Cost (Full) | I3: Installation / Engineering Cost (Full) | J3: Incremental Annual O&M Cost | K3: Now/ EOL | L3: Annual Gas Savings (GJ) | M3: Annual Gas Savings (m3) | N3: Net Measure TRC | O3: Simple Payback Period (Yrs) | P3: B/C Ratio
A4: Small (0.8 MMBTU) | B4: ='[1]Measure Setup - NG TRC'!G80 -> Radiant heaters | C4: ='[1]Measure Setup - NG TRC'!I80 -> 20 | D4: ='[1]Measure Setup - NG TRC'!J80 -> 0.25 | E4: ='[1]Measure Setup - NG TRC'!R80 -> 3250.355294 | F4: =(1/0.03769)*E4 -> 86239.19592 | G4: N/A | H4: ='[1]Measure Setup - NG TRC'!U80 -> 30000 | I4: ='[1]Measure Setup - NG TRC'!V80 -> 4000 | J4: ='[1]Measure Setup - NG TRC'!W80 -> 1000 | K4: ='[1]Measure Setup - NG TRC'!X80 -> Now | L4: ='[1]Measure Setup - NG TRC'!AD80 -> 812.5888235 | M4: =IF(L4="","",(1/0.03769)*L4) -> 21559.79898 | N4: ='[1]Measure Setup - NG TRC'!AH80 -> 35945.95211 | O4: ='[1]Measure Setup - NG TRC'!AK80 -> 4.45521416 | P4: ='[1]Measure Setup - NG TRC'!AM80 -> 1.845517265
B5: ='[1]Measure Setup - NG TRC'!G82 -> Automated temperature control | C5: ='[1]Measure Setup - NG TRC'!I82 -> 20 | D5: ='[1]Measure Setup - NG TRC'!J82 -> 0.15 | E5: ='[1]Measure Setup - NG TRC'!R82 -> 3250.355294 | F5: 86239.19592 | G5: N/A | H5: ='[1]Measure Setup - NG TRC'!U82 -> 12000 | I5: ='[1]Measure Setup - NG TRC'!V82 -> 960 | J5: ='[1]Measure Setup - NG TRC'!W82 -> 500 | K5: ='[1]Measure Setup - NG TRC'!X82 -> Now | L5: ='[1]Measure Setup - NG TRC'!AD82 -> 487.5532941 | M5: 12935.87939 | N5: ='[1]Measure Setup - NG TRC'!AH82 -> 29858.92764 | O5: ='[1]Measure Setup - NG TRC'!AK82 -> 2.796256684 | P5: ='[1]Measure Setup - NG TRC'!AM82 -> 2.734292034
B6: ='[1]Measure Setup - NG TRC'!G83 -> Solar Walls | C6: ='[1]Measure Setup - NG TRC'!I83 -> 20 | D6: ='[1]Measure Setup - NG TRC'!J83 -> 0.15 | E6: ='[1]Measure Setup - NG TRC'!R83 -> 3250.355294 | F6: 86239.19592 | G6: N/A | H6: ='[1]Measure Setup - NG TRC'!U83 -> 100000 | I6: ='[1]Measure Setup - NG TRC'!V83 -> 8000 | J6: ='[1]Measure Setup - NG TRC'!W83 -> 0 | K6: ='[1]Measure Setup - NG TRC'!X83 -> Now | L6: ='[1]Measure Setup - NG TRC'!AD83 -> 487.5532941 | M6: 12935.87939 | N6: ='[1]Measure Setup - NG TRC'!AH83 -> -60924.2905 | O6: ='[1]Measure Setup - NG TRC'!AK83 -> 20.32528693 | P6: ='[1]Measure Setup - NG TRC'!AM83 -> 0.435886199
B7: ='[1]Measure Setup - NG TRC'!G84 -> Ventilation & Heat Recovery Optimization | C7: ='[1]Measure Setup - NG TRC'!I84 -> 20 | D7: ='[1]Measure Setup - NG TRC'!J84 -> 0.17 | E7: ='[1]Measure Setup - NG TRC'!R84 -> 3250.355294 | F7: 86239.19592 | G7: N/A | H7: ='[1]Measure Setup - NG TRC'!U84 -> 25000 | I7: ='[1]Measure Setup - NG TRC'!V84 -> 1600 | J7: ='[1]Measure Setup - NG TRC'!W84 -> 200 | K7: ='[1]Measure Setup - NG TRC'!X84 -> Now | L7: ='[1]Measure Setup - NG TRC'!AD84 -> 552.5604 | M7: 14660.66331 | N7: ='[1]Measure Setup - NG TRC'!AH84 -> 25049.75802 | O7: ='[1]Measure Setup - NG TRC'!AK84 -> 4.603185481 | P7: ='[1]Measure Setup - NG TRC'!AM84 -> 1.885065621
B8: ='[1]Measure Setup - NG TRC'!G85 -> Warehouse loading dock seals | C8: ='[1]Measure Setup - NG TRC'!I85 -> 10 | D8: ='[1]Measure Setup - NG TRC'!J85 -> 0.05 | E8: ='[1]Measure Setup - NG TRC'!R85 -> 3250.355294 | F8: =(1/0.03769)*E8 -> 86239.19592 | G8: N/A | H8: ='[1]Measure Setup - NG TRC'!U85 -> 10000 | I8: ='[1]Measure Setup - NG TRC'!V85 -> 5000 | J8: ='[1]Measure Setup - NG TRC'!W85 -> 500 | K8: ='[1]Measure Setup - NG TRC'!X85 -> Now | L8: ='[1]Measure Setup - NG TRC'!AD85 -> 162.5177647 | M8: =IF(L8="","",(1/0.03769)*L8) -> 4311.959796 | N8: ='[1]Measure Setup - NG TRC'!AH85 -> -7286.191837 | O8: ='[1]Measure Setup - NG TRC'!AK85 -> 12.19327322 | P8: ='[1]Measure Setup - NG TRC'!AM85 -> 0.5968305933
B9: ='[1]Measure Setup - NG TRC'!G86 -> Air curtains | C9: ='[1]Measure Setup - NG TRC'!I86 -> 15 | D9: ='[1]Measure Setup - NG TRC'!J86 -> 0.05 | E9: ='[1]Measure Setup - NG TRC'!R86 -> 3250.355294 | F9: =(1/0.03769)*E9 -> 86239.19592 | G9: N/A | H9: ='[1]Measure Setup - NG TRC'!U86 -> 13000 | I9: ='[1]Measure Setup - NG TRC'!V86 -> 2000 | J9: ='[1]Measure Setup - NG TRC'!W86 -> 500 | K9: ='[1]Measure Setup - NG TRC'!X86 -> Now | L9: ='[1]Measure Setup - NG TRC'!AD86 -> 162.5177647 | M9: =IF(L9="","",(1/0.03769)*L9) -> 4311.959796 | N9: ='[1]Measure Setup - NG TRC'!AH86 -> -5090.89043 | O9: ='[1]Measure Setup - NG TRC'!AK86 -> 12.19327322 | P9: ='[1]Measure Setup - NG TRC'!AM86 -> 0.7292517329
B10: ='[1]Measure Setup - NG TRC'!G87 -> Air compressor heat recovery | C10: ='[1]Measure Setup - NG TRC'!I87 -> 20 | D10: ='[1]Measure Setup - NG TRC'!J87 -> 0.15 | E10: ='[1]Measure Setup - NG TRC'!R87 -> 3250.355294 | F10: =(1/0.03769)*E10 -> 86239.19592 | G10: N/A | H10: ='[1]Measure Setup - NG TRC'!U87 -> 18000 | I10: ='[1]Measure Setup - NG TRC'!V87 -> 2500 | J10: ='[1]Measure Setup - NG TRC'!W87 -> 500 | K10: ='[1]Measure Setup - NG TRC'!X87 -> Now | L10: ='[1]Measure Setup - NG TRC'!AD87 -> 487.5532941 | M10: =IF(L10="","",(1/0.03769)*L10) -> 12935.87939 | N10: ='[1]Measure Setup - NG TRC'!AH87 -> 22318.92764 | O10: ='[1]Measure Setup - NG TRC'!AK87 -> 4.362659016 | P10: ='[1]Measure Setup - NG TRC'!AM87 -> 1.901527822
B11: ='[1]Measure Setup - NG TRC'!G88 -> Destratification fans | C11: ='[1]Measure Setup - NG TRC'!I88 -> 20 | D11: ='[1]Measure Setup - NG TRC'!J88 -> 0.08 | E11: ='[1]Measure Setup - NG TRC'!R88 -> 3250.355294 | F11: =(1/0.03769)*E11 -> 86239.19592 | G11: N/A | H11: ='[1]Measure Setup - NG TRC'!U88 -> 10000 | I11: ='[1]Measure Setup - NG TRC'!V88 -> 800 | J11: ='[1]Measure Setup - NG TRC'!W88 -> 0 | K11: ='[1]Measure Setup - NG TRC'!X88 -> Now | L11: ='[1]Measure Setup - NG TRC'!AD88 -> 260.0284235 | M11: =IF(L11="","",(1/0.03769)*L11) -> 6899.135673 | N11: ='[1]Measure Setup - NG TRC'!AH88 -> 14307.04507 | O11: ='[1]Measure Setup - NG TRC'!AK88 -> 3.8109913 | P11: ='[1]Measure Setup - NG TRC'!AM88 -> 2.324726395
A12: Medium (2 MMBTU) | B12: ='[1]Measure Setup - NG TRC'!G80 -> Radiant heaters | C12: ='[1]Measure Setup - NG TRC'!I80 -> 20 | D12: ='[1]Measure Setup - NG TRC'!J80 -> 0.25 | E12: ='[1]Measure Setup - NG TRC'!AY80 -> 8125.888235 | F12: =(1/0.03769)*E12 -> 215597.9898 | G12: N/A | H12: ='[1]Measure Setup - NG TRC'!BB80 -> 70000 | I12: ='[1]Measure Setup - NG TRC'!BC80 -> 10000 | J12: ='[1]Measure Setup - NG TRC'!BD80 -> 1000 | K12: ='[1]Measure Setup - NG TRC'!BE80 -> Now | L12: ='[1]Measure Setup - NG TRC'!BK80 -> 2031.472059 | M12: =IF(L12="","",(1/0.03769)*L12) -> 53899.49745 | N12: ='[1]Measure Setup - NG TRC'!BO80 -> 107635.2259 | O12: ='[1]Measure Setup - NG TRC'!BR80 -> 3.831615386 | P12: ='[1]Measure Setup - NG TRC'!BT80 -> 2.216030869
B13: ='[1]Measure Setup - NG TRC'!G82 -> Automated temperature control | C13: ='[1]Measure Setup - NG TRC'!I82 -> 20 | D13: ='[1]Measure Setup - NG TRC'!J82 -> 0.15 | E13: ='[1]Measure Setup - NG TRC'!AY82 -> 8125.888235 | F13: 215597.9898 | G13: N/A | H13: ='[1]Measure Setup - NG TRC'!BB82 -> 29000 | I13: ='[1]Measure Setup - NG TRC'!BC82 -> 2320 | J13: ='[1]Measure Setup - NG TRC'!BD82 -> 500 | K13: ='[1]Measure Setup - NG TRC'!BE82 -> Now | L13: ='[1]Measure Setup - NG TRC'!BK82 -> 1218.883235 | M13: 32339.69847 | N13: ='[1]Measure Setup - NG TRC'!BO82 -> 82112.49188 | O13: ='[1]Measure Setup - NG TRC'!BR82 -> 2.489059459 | P13: ='[1]Measure Setup - NG TRC'!BT82 -> 3.30803596
B14: ='[1]Measure Setup - NG TRC'!G83 -> Solar Walls | C14: ='[1]Measure Setup - NG TRC'!I83 -> 20 | D14: ='[1]Measure Setup - NG TRC'!J83 -> 0.15 | E14: ='[1]Measure Setup - NG TRC'!AY83 -> 8125.888235 | F14: 215597.9898 | G14: N/A | H14: ='[1]Measure Setup - NG TRC'!BB83 -> 175000 | I14: ='[1]Measure Setup - NG TRC'!BC83 -> 14000 | J14: ='[1]Measure Setup - NG TRC'!BD83 -> 0 | K14: ='[1]Measure Setup - NG TRC'!BE83 -> Now | L14: ='[1]Measure Setup - NG TRC'!BK83 -> 1218.883235 | M14: 32339.69847 | N14: ='[1]Measure Setup - NG TRC'!BO83 -> -71310.72626 | O14: ='[1]Measure Setup - NG TRC'!BR83 -> 14.22770085 | P14: ='[1]Measure Setup - NG TRC'!BT83 -> 0.6226945701
B15: ='[1]Measure Setup - NG TRC'!G84 -> Ventilation & Heat Recovery Optimization | C15: ='[1]Measure Setup - NG TRC'!I84 -> 20 | D15: ='[1]Measure Setup - NG TRC'!J84 -> 0.17 | E15: ='[1]Measure Setup - NG TRC'!AY84 -> 8125.888235 | F15: 215597.9898 | G15: N/A | H15: ='[1]Measure Setup - NG TRC'!BB84 -> 70000 | I15: ='[1]Measure Setup - NG TRC'!BC84 -> 12000 | J15: ='[1]Measure Setup - NG TRC'!BD84 -> 1000 | K15: ='[1]Measure Setup - NG TRC'!BE84 -> Now | L15: ='[1]Measure Setup - NG TRC'!BK84 -> 1381.401 | M15: 36651.65826 | N15: ='[1]Measure Setup - NG TRC'!BO84 -> 42867.61319 | O15: ='[1]Measure Setup - NG TRC'!BR84 -> 5.905313765 | P15: ='[1]Measure Setup - NG TRC'!BT84 -> 1.473604302
B16: ='[1]Measure Setup - NG TRC'!G85 -> Warehouse loading dock seals | C16: ='[1]Measure Setup - NG TRC'!I85 -> 10 | D16: ='[1]Measure Setup - NG TRC'!J85 -> 0.05 | E16: ='[1]Measure Setup - NG TRC'!AY85 -> 8125.888235 | F16: =(1/0.03769)*E16 -> 215597.9898 | G16: N/A | H16: ='[1]Measure Setup - NG TRC'!BB85 -> 20000 | I16: ='[1]Measure Setup - NG TRC'!BC85 -> 4000 | J16: ='[1]Measure Setup - NG TRC'!BD85 -> 500 | K16: ='[1]Measure Setup - NG TRC'!BE85 -> Now | L16: ='[1]Measure Setup - NG TRC'!BK85 -> 406.2944118 | M16: =IF(L16="","",(1/0.03769)*L16) -> 10779.89949 | N16: ='[1]Measure Setup - NG TRC'!BO85 -> -107.0542637 | O16: ='[1]Measure Setup - NG TRC'!BR85 -> 6.237299824 | P16: ='[1]Measure Setup - NG TRC'!BT85 -> 0.9960456138
B17: ='[1]Measure Setup - NG TRC'!G86 -> Air curtains | C17: ='[1]Measure Setup - NG TRC'!I86 -> 15 | D17: ='[1]Measure Setup - NG TRC'!J86 -> 0.05 | E17: ='[1]Measure Setup - NG TRC'!AY86 -> 8125.888235 | F17: =(1/0.03769)*E17 -> 215597.9898 | G17: N/A | H17: ='[1]Measure Setup - NG TRC'!BB86 -> 18000 | I17: ='[1]Measure Setup - NG TRC'!BC86 -> 1440 | J17: ='[1]Measure Setup - NG TRC'!BD86 -> 500 | K17: ='[1]Measure Setup - NG TRC'!BE86 -> Now | L17: ='[1]Measure Setup - NG TRC'!BK86 -> 406.2944118 | M17: =IF(L17="","",(1/0.03769)*L17) -> 10779.89949 | N17: ='[1]Measure Setup - NG TRC'!BO86 -> 11037.33356 | O17: ='[1]Measure Setup - NG TRC'!BR86 -> 5.076398306 | P17: ='[1]Measure Setup - NG TRC'!BT86 -> 1.474866182
B18: ='[1]Measure Setup - NG TRC'!G87 -> Air compressor heat recovery | C18: ='[1]Measure Setup - NG TRC'!I87 -> 20 | D18: ='[1]Measure Setup - NG TRC'!J87 -> 0.15 | E18: ='[1]Measure Setup - NG TRC'!AY87 -> 8125.888235 | F18: =(1/0.03769)*E18 -> 215597.9898 | G18: N/A | H18: ='[1]Measure Setup - NG TRC'!BB87 -> 45000 | I18: ='[1]Measure Setup - NG TRC'!BC87 -> 3500 | J18: ='[1]Measure Setup - NG TRC'!BD87 -> 1000 | K18: ='[1]Measure Setup - NG TRC'!BE87 -> Now | L18: ='[1]Measure Setup - NG TRC'!BK87 -> 1218.883235 | M18: =IF(L18="","",(1/0.03769)*L18) -> 32339.69847 | N18: ='[1]Measure Setup - NG TRC'!BO87 -> 60675.71002 | O18: ='[1]Measure Setup - NG TRC'!BR87 -> 4.029649983 | P18: ='[1]Measure Setup - NG TRC'!BT87 -> 2.064232896
B19: ='[1]Measure Setup - NG TRC'!G88 -> Destratification fans | C19: ='[1]Measure Setup - NG TRC'!I88 -> 20 | D19: ='[1]Measure Setup - NG TRC'!J88 -> 0.08 | E19: ='[1]Measure Setup - NG TRC'!AY88 -> 8125.888235 | F19: =(1/0.03769)*E19 -> 215597.9898 | G19: N/A | H19: ='[1]Measure Setup - NG TRC'!BB88 -> 25000 | I19: ='[1]Measure Setup - NG TRC'!BC88 -> 2000 | J19: ='[1]Measure Setup - NG TRC'!BD88 -> 500 | K19: ='[1]Measure Setup - NG TRC'!BE88 -> Now | L19: ='[1]Measure Setup - NG TRC'!BK88 -> 650.0710588 | M19: =IF(L19="","",(1/0.03769)*L19) -> 17247.83918 | N19: ='[1]Measure Setup - NG TRC'!BO88 -> 31510.8308 | O19: ='[1]Measure Setup - NG TRC'!BR88 -> 4.176303277 | P19: ='[1]Measure Setup - NG TRC'!BT88 -> 2.008127802
A20: Large (5 MMBTU) | B20: ='[1]Measure Setup - NG TRC'!G80 -> Radiant heaters | C20: ='[1]Measure Setup - NG TRC'!I80 -> 20 | D20: ='[1]Measure Setup - NG TRC'!J80 -> 0.25 | E20: ='[1]Measure Setup - NG TRC'!CF80 -> 20314.72059 | F20: =(1/0.03769)*E20 -> 538994.9745 | G20: N/A | H20: ='[1]Measure Setup - NG TRC'!CI80 -> 200000 | I20: ='[1]Measure Setup - NG TRC'!CJ80 -> 20000 | J20: ='[1]Measure Setup - NG TRC'!CK80 -> 5000 | K20: ='[1]Measure Setup - NG TRC'!CL80 -> Now | L20: ='[1]Measure Setup - NG TRC'!CR80 -> 5078.680147 | M20: =IF(L20="","",(1/0.03769)*L20) -> 134748.7436 | N20: ='[1]Measure Setup - NG TRC'!CV80 -> 227804.1553 | O20: ='[1]Measure Setup - NG TRC'!CY80 -> 4.468739192 | P20: ='[1]Measure Setup - NG TRC'!DA80 -> 1.867601203
B21: ='[1]Measure Setup - NG TRC'!G82 -> Automated temperature control | C21: ='[1]Measure Setup - NG TRC'!I82 -> 20 | D21: ='[1]Measure Setup - NG TRC'!J82 -> 0.15 | E21: ='[1]Measure Setup - NG TRC'!CF82 -> 20314.72059 | F21: 538994.9745 | G21: N/A | H21: ='[1]Measure Setup - NG TRC'!CI82 -> 70000 | I21: ='[1]Measure Setup - NG TRC'!CJ82 -> 5600 | J21: ='[1]Measure Setup - NG TRC'!CK82 -> 1000 | K21: ='[1]Measure Setup - NG TRC'!CL82 -> Now | L21: ='[1]Measure Setup - NG TRC'!CR82 -> 3047.208088 | M21: 80849.24617 | N21: ='[1]Measure Setup - NG TRC'!CV82 -> 210109.6206 | O21: ='[1]Measure Setup - NG TRC'!CY82 -> 2.378153529 | P21: ='[1]Measure Setup - NG TRC'!DA82 -> 3.497927936
B22: ='[1]Measure Setup - NG TRC'!G83 -> Solar Walls | C22: ='[1]Measure Setup - NG TRC'!I83 -> 20 | D22: ='[1]Measure Setup - NG TRC'!J83 -> 0.15 | E22: ='[1]Measure Setup - NG TRC'!CF83 -> 20314.72059 | F22: 538994.9745 | G22: N/A | H22: ='[1]Measure Setup - NG TRC'!CI83 -> 250000 | I22: ='[1]Measure Setup - NG TRC'!CJ83 -> 20000 | J22: ='[1]Measure Setup - NG TRC'!CK83 -> 0 | K22: ='[1]Measure Setup - NG TRC'!CL83 -> Now | L22: ='[1]Measure Setup - NG TRC'!CR83 -> 3047.208088 | M22: 80849.24617 | N22: ='[1]Measure Setup - NG TRC'!CV83 -> 24223.18436 | O22: ='[1]Measure Setup - NG TRC'!CY83 -> 8.130114773 | P22: ='[1]Measure Setup - NG TRC'!DA83 -> 1.089715498
B23: ='[1]Measure Setup - NG TRC'!G84 -> Ventilation & Heat Recovery Optimization | C23: ='[1]Measure Setup - NG TRC'!I84 -> 20 | D23: ='[1]Measure Setup - NG TRC'!J84 -> 0.17 | E23: ='[1]Measure Setup - NG TRC'!CF84 -> 20314.72059 | F23: 538994.9745 | G23: N/A | H23: ='[1]Measure Setup - NG TRC'!CI84 -> 150000 | I23: ='[1]Measure Setup - NG TRC'!CJ84 -> 15000 | J23: ='[1]Measure Setup - NG TRC'!CK84 -> 1000 | K23: ='[1]Measure Setup - NG TRC'!CL84 -> Now | L23: ='[1]Measure Setup - NG TRC'!CR84 -> 3453.5025 | M23: 91629.14566 | N23: ='[1]Measure Setup - NG TRC'!CV84 -> 159939.3786 | O23: ='[1]Measure Setup - NG TRC'!CY84 -> 4.530834164 | P23: ='[1]Measure Setup - NG TRC'!DA84 -> 1.921768737
B24: ='[1]Measure Setup - NG TRC'!G85 -> Warehouse loading dock seals | C24: ='[1]Measure Setup - NG TRC'!I85 -> 10 | D24: ='[1]Measure Setup - NG TRC'!J85 -> 0.05 | E24: ='[1]Measure Setup - NG TRC'!CF85 -> 20314.72059 | F24: =(1/0.03769)*E24 -> 538994.9745 | G24: N/A | H24: ='[1]Measure Setup - NG TRC'!CI85 -> 40000 | I24: ='[1]Measure Setup - NG TRC'!CJ85 -> 8000 | J24: ='[1]Measure Setup - NG TRC'!CK85 -> 1000 | K24: ='[1]Measure Setup - NG TRC'!CL85 -> Now | L24: ='[1]Measure Setup - NG TRC'!CR85 -> 1015.736029 | M24: =IF(L24="","",(1/0.03769)*L24) -> 26949.74872 | N24: ='[1]Measure Setup - NG TRC'!CV85 -> 13268.50612 | O24: ='[1]Measure Setup - NG TRC'!CY85 -> 4.865960454 | P24: ='[1]Measure Setup - NG TRC'!DA85 -> 1.245057017
B25: ='[1]Measure Setup - NG TRC'!G86 -> Air curtains | C25: ='[1]Measure Setup - NG TRC'!I86 -> 15 | D25: ='[1]Measure Setup - NG TRC'!J86 -> 0.05 | E25: ='[1]Measure Setup - NG TRC'!CF86 -> 20314.72059 | F25: =(1/0.03769)*E25 -> 538994.9745 | G25: N/A | H25: ='[1]Measure Setup - NG TRC'!CI86 -> 40000 | I25: ='[1]Measure Setup - NG TRC'!CJ86 -> 7000 | J25: ='[1]Measure Setup - NG TRC'!CK86 -> 1000 | K25: ='[1]Measure Setup - NG TRC'!CL86 -> Now | L25: ='[1]Measure Setup - NG TRC'!CR86 -> 1015.736029 | M25: =IF(L25="","",(1/0.03769)*L25) -> 26949.74872 | N25: ='[1]Measure Setup - NG TRC'!CV86 -> 31094.85377 | O25: ='[1]Measure Setup - NG TRC'!CY86 -> 4.766655138 | P25: ='[1]Measure Setup - NG TRC'!DA86 -> 1.569439411
B26: ='[1]Measure Setup - NG TRC'!G87 -> Air compressor heat recovery | C26: ='[1]Measure Setup - NG TRC'!I87 -> 20 | D26: ='[1]Measure Setup - NG TRC'!J87 -> 0.15 | E26: ='[1]Measure Setup - NG TRC'!CF87 -> 20314.72059 | F26: =(1/0.03769)*E26 -> 538994.9745 | G26: N/A | H26: ='[1]Measure Setup - NG TRC'!CI87 -> 100000 | I26: ='[1]Measure Setup - NG TRC'!CJ87 -> 10000 | J26: ='[1]Measure Setup - NG TRC'!CK87 -> 2000 | K26: ='[1]Measure Setup - NG TRC'!CL87 -> Now | L26: ='[1]Measure Setup - NG TRC'!CR87 -> 3047.208088 | M26: =IF(L26="","",(1/0.03769)*L26) -> 80849.24617 | N26: ='[1]Measure Setup - NG TRC'!CV87 -> 167196.0569 | O26: ='[1]Measure Setup - NG TRC'!CY87 -> 3.588609121 | P26: ='[1]Measure Setup - NG TRC'!DA87 -> 2.316223237
B27: ='[1]Measure Setup - NG TRC'!G88 -> Destratification fans | C27: ='[1]Measure Setup - NG TRC'!I88 -> 20 | D27: ='[1]Measure Setup - NG TRC'!J88 -> 0.08 | E27: ='[1]Measure Setup - NG TRC'!CF88 -> 20314.72059 | F27: =(1/0.03769)*E27 -> 538994.9745 | G27: N/A | H27: ='[1]Measure Setup - NG TRC'!CI88 -> 60000 | I27: ='[1]Measure Setup - NG TRC'!CJ88 -> 4800 | J27: ='[1]Measure Setup - NG TRC'!CK88 -> 2000 | K27: ='[1]Measure Setup - NG TRC'!CL88 -> Now | L27: ='[1]Measure Setup - NG TRC'!CR88 -> 1625.177647 | M27: =IF(L27="","",(1/0.03769)*L27) -> 43119.59796 | N27: ='[1]Measure Setup - NG TRC'!CV88 -> 75091.90422 | O27: ='[1]Measure Setup - NG TRC'!CY88 -> 4.251547227 | P27: ='[1]Measure Setup - NG TRC'!DA88 -> 1.917689605
